Workbook

Sheet Sheet1
A1: Pl | B1: Namn | C1: T 1 8/5 | D1: T 2 15/5 | E1: T 3 22/5 | F1: T 4 29/5 | G1: T 5 5/6 | H1: T 6 12/6 | I1: T 7 19/6 | J1: T 8 26/6 | K1: T 9 3/7 | L1: T 10 10/7 | M1: T 11 17/7 | N1: T 12 31/7 | O1: T 13 7/8 | P1: T 14 14/8 | Q1: T 15 21/8 | R1: T 28/8 | Y1: S:a | Z1: 1 | AA1: 2 | AB1: 3 | AC1: 4 | AD1: 5 | AE1: Tot
A2: 1 | B2: Camilla Sätermo | E2: 69 | F2: 70 | G2: 74 | H2: 70 | I2: 80 | J2: 73 | L2: 70 | P2: 75 | Q2: 68 | R2: 74 | Y2: =SUM(C2:X2) -> 723 | Z2: =IF(ISERROR(SMALL($C2:$X2,Z$1)),0,IF($Y2=0,0,SMALL($C2:$X2,Z$1))) -> 68 | AA2: =IF(ISERROR(SMALL($C2:$X2,AA$1)),0,IF($Y2=0,0,SMALL($C2:$X2,AA$1))) -> 69 | AB2: =IF(ISERROR(SMALL($C2:$X2,AB$1)),0,IF($Y2=0,0,SMALL($C2:$X2,AB$1))) -> 70 | AC2: =IF(ISERROR(SMALL($C2:$X2,AC$1)),0,IF($Y2=0,0,SMALL($C2:$X2,AC$1))) -> 70 | AD2: =IF(ISERROR(SMALL($C2:$X2,AD$1)),0,IF($Y2=0,0,SMALL($C2:$X2,AD$1))) -> 70 | AE2: =SUM(Z2:AD2) -> 347 | AF2: =IF(IF(ISERROR(SMALL($C2:$X2,Z$1)),0,IF($Y2=0,0,SMALL($C2:$X2,Z$1)))=0,100,Z2) -> 68 | AG2: =IF(IF(ISERROR(SMALL($C2:$X2,AA$1)),0,IF($Y2=0,0,SMALL($C2:$X2,AA$1)))=0,100,AA2) -> 69 | AH2: =IF(IF(ISERROR(SMALL($C2:$X2,AB$1)),0,IF($Y2=0,0,SMALL($C2:$X2,AB$1)))=0,100,AB2) -> 70 | AI2: =IF(IF(ISERROR(SMALL($C2:$X2,AC$1)),0,IF($Y2=0,0,SMALL($C2:$X2,AC$1)))=0,100,AC2) -> 70 | AJ2: =IF(IF(ISERROR(SMALL($C2:$X2,AD$1)),0,IF($Y2=0,0,SMALL($C2:$X2,AD$1)))=0,100,AD2) -> 70 | AK2: =SUM(AF2:AJ2) -> 347
A3: 2 | B3: Eva Sätermo | F3: 71 | J3: 79 | L3: 73 | M3: 70 | N3: 75 | O3: 72 | Q3: 83 | R3: 77 | Y3: =SUM(C3:X3) -> 600 | Z3: =IF(ISERROR(SMALL($C3:$X3,Z$1)),0,IF($Y3=0,0,SMALL($C3:$X3,Z$1))) -> 70 | AA3: =IF(ISERROR(SMALL($C3:$X3,AA$1)),0,IF($Y3=0,0,SMALL($C3:$X3,AA$1))) -> 71 | AB3: =IF(ISERROR(SMALL($C3:$X3,AB$1)),0,IF($Y3=0,0,SMALL($C3:$X3,AB$1))) -> 72 | AC3: =IF(ISERROR(SMALL($C3:$X3,AC$1)),0,IF($Y3=0,0,SMALL($C3:$X3,AC$1))) -> 73 | AD3: =IF(ISERROR(SMALL($C3:$X3,AD$1)),0,IF($Y3=0,0,SMALL($C3:$X3,AD$1))) -> 75 | AE3: =SUM(Z3:AD3) -> 361 | AF3: =IF(IF(ISERROR(SMALL($C3:$X3,Z$1)),0,IF($Y3=0,0,SMALL($C3:$X3,Z$1)))=0,100,Z3) -> 70 | AG3: =IF(IF(ISERROR(SMALL($C3:$X3,AA$1)),0,IF($Y3=0,0,SMALL($C3:$X3,AA$1)))=0,100,AA3) -> 71 | AH3: =IF(IF(ISERROR(SMALL($C3:$X3,AB$1)),0,IF($Y3=0,0,SMALL($C3:$X3,AB$1)))=0,100,AB3) -> 72 | AI3: =IF(IF(ISERROR(SMALL($C3:$X3,AC$1)),0,IF($Y3=0,0,SMALL($C3:$X3,AC$1)))=0,100,AC3) -> 73 | AJ3: =IF(IF(ISERROR(SMALL($C3:$X3,AD$1)),0,IF($Y3=0,0,SMALL($C3:$X3,AD$1)))=0,100,AD3) -> 75 | AK3: =SUM(AF3:AJ3) -> 361
A4: 3 | B4: Karin Ulmbrant | E4: 78 | F4: 73 | G4: 77 | H4: 68 | I4: 75 | J4: 80 | K4: 77 | L4: 75 | M4: 75 | N4: 74 | O4: 72 | Y4: =SUM(C4:X4) -> 824 | Z4: =IF(ISERROR(SMALL($C4:$X4,Z$1)),0,IF($Y4=0,0,SMALL($C4:$X4,Z$1))) -> 68 | AA4: =IF(ISERROR(SMALL($C4:$X4,AA$1)),0,IF($Y4=0,0,SMALL($C4:$X4,AA$1))) -> 72 | AB4: =IF(ISERROR(SMALL($C4:$X4,AB$1)),0,IF($Y4=0,0,SMALL($C4:$X4,AB$1))) -> 73 | AC4: =IF(ISERROR(SMALL($C4:$X4,AC$1)),0,IF($Y4=0,0,SMALL($C4:$X4,AC$1))) -> 74 | AD4: =IF(ISERROR(SMALL($C4:$X4,AD$1)),0,IF($Y4=0,0,SMALL($C4:$X4,AD$1))) -> 75 | AE4: =SUM(Z4:AD4) -> 362 | AF4: =IF(IF(ISERROR(SMALL($C4:$X4,Z$1)),0,IF($Y4=0,0,SMALL($C4:$X4,Z$1)))=0,100,Z4) -> 68 | AG4: =IF(IF(ISERROR(SMALL($C4:$X4,AA$1)),0,IF($Y4=0,0,SMALL($C4:$X4,AA$1)))=0,100,AA4) -> 72 | AH4: =IF(IF(ISERROR(SMALL($C4:$X4,AB$1)),0,IF($Y4=0,0,SMALL($C4:$X4,AB$1)))=0,100,AB4) -> 73 | AI4: =IF(IF(ISERROR(SMALL($C4:$X4,AC$1)),0,IF($Y4=0,0,SMALL($C4:$X4,AC$1)))=0,100,AC4) -> 74 | AJ4: =IF(IF(ISERROR(SMALL($C4:$X4,AD$1)),0,IF($Y4=0,0,SMALL($C4:$X4,AD$1)))=0,100,AD4) -> 75 | AK4: =SUM(AF4:AJ4) -> 362
A5: 4 | B5: Eva Rylander | D5: 75 | E5: 73 | F5: 79 | H5: 78 | I5: 78 | J5: 71 | N5: 74 | O5: 70 | Q5: 75 | R5: 75 | Y5: =SUM(C5:X5) -> 748 | Z5: =IF(ISERROR(SMALL($C5:$X5,Z$1)),0,IF($Y5=0,0,SMALL($C5:$X5,Z$1))) -> 70 | AA5: =IF(ISERROR(SMALL($C5:$X5,AA$1)),0,IF($Y5=0,0,SMALL($C5:$X5,AA$1))) -> 71 | AB5: =IF(ISERROR(SMALL($C5:$X5,AB$1)),0,IF($Y5=0,0,SMALL($C5:$X5,AB$1))) -> 73 | AC5: =IF(ISERROR(SMALL($C5:$X5,AC$1)),0,IF($Y5=0,0,SMALL($C5:$X5,AC$1))) -> 74 | AD5: =IF(ISERROR(SMALL($C5:$X5,AD$1)),0,IF($Y5=0,0,SMALL($C5:$X5,AD$1))) -> 75 | AE5: =SUM(Z5:AD5) -> 363 | AF5: =IF(IF(ISERROR(SMALL($C5:$X5,Z$1)),0,IF($Y5=0,0,SMALL($C5:$X5,Z$1)))=0,100,Z5) -> 70 | AG5: =IF(IF(ISERROR(SMALL($C5:$X5,AA$1)),0,IF($Y5=0,0,SMALL($C5:$X5,AA$1)))=0,100,AA5) -> 71 | AH5: =IF(IF(ISERROR(SMALL($C5:$X5,AB$1)),0,IF($Y5=0,0,SMALL($C5:$X5,AB$1)))=0,100,AB5) -> 73 | AI5: =IF(IF(ISERROR(SMALL($C5:$X5,AC$1)),0,IF($Y5=0,0,SMALL($C5:$X5,AC$1)))=0,100,AC5) -> 74 | AJ5: =IF(IF(ISERROR(SMALL($C5:$X5,AD$1)),0,IF($Y5=0,0,SMALL($C5:$X5,AD$1)))=0,100,AD5) -> 75 | AK5: =SUM(AF5:AJ5) -> 363
A6: 5 | B6: Kerstin Hylén Sundström | C6: 78 | D6: 75 | E6: 70 | G6: 75 | H6: 77 | I6: 71 | J6: 74 | K6: 85 | L6: 75 | M6: 85 | Q6: 79 | R6: 73 | Y6: =SUM(C6:X6) -> 917 | Z6: =IF(ISERROR(SMALL($C6:$X6,Z$1)),0,IF($Y6=0,0,SMALL($C6:$X6,Z$1))) -> 70 | AA6: =IF(ISERROR(SMALL($C6:$X6,AA$1)),0,IF($Y6=0,0,SMALL($C6:$X6,AA$1))) -> 71 | AB6: =IF(ISERROR(SMALL($C6:$X6,AB$1)),0,IF($Y6=0,0,SMALL($C6:$X6,AB$1))) -> 73 | AC6: =IF(ISERROR(SMALL($C6:$X6,AC$1)),0,IF($Y6=0,0,SMALL($C6:$X6,AC$1))) -> 74 | AD6: =IF(ISERROR(SMALL($C6:$X6,AD$1)),0,IF($Y6=0,0,SMALL($C6:$X6,AD$1))) -> 75 | AE6: =SUM(Z6:AD6) -> 363 | AF6: =IF(IF(ISERROR(SMALL($C6:$X6,Z$1)),0,IF($Y6=0,0,SMALL($C6:$X6,Z$1)))=0,100,Z6) -> 70 | AG6: =IF(IF(ISERROR(SMALL($C6:$X6,AA$1)),0,IF($Y6=0,0,SMALL($C6:$X6,AA$1)))=0,100,AA6) -> 71 | AH6: =IF(IF(ISERROR(SMALL($C6:$X6,AB$1)),0,IF($Y6=0,0,SMALL($C6:$X6,AB$1)))=0,100,AB6) -> 73 | AI6: =IF(IF(ISERROR(SMALL($C6:$X6,AC$1)),0,IF($Y6=0,0,SMALL($C6:$X6,AC$1)))=0,100,AC6) -> 74 | AJ6: =IF(IF(ISERROR(SMALL($C6:$X6,AD$1)),0,IF($Y6=0,0,SMALL($C6:$X6,AD$1)))=0,100,AD6) -> 75 | AK6: =SUM(AF6:AJ6) -> 363
A7: 6 | B7: Marielouise Rådberg | C7: 78 | D7: 81 | E7: 83 | F7: 73 | G7: 75 | H7: 85 | I7: 86 | J7: 81 | K7: 68 | M7: 71 | N7: 76 | O7: 78 | Q7: 77 | R7: 84 | Y7: =SUM(C7:X7) -> 1096 | Z7: =IF(ISERROR(SMALL($C7:$X7,Z$1)),0,IF($Y7=0,0,SMALL($C7:$X7,Z$1))) -> 68 | AA7: =IF(ISERROR(SMALL($C7:$X7,AA$1)),0,IF($Y7=0,0,SMALL($C7:$X7,AA$1))) -> 71 | AB7: =IF(ISERROR(SMALL($C7:$X7,AB$1)),0,IF($Y7=0,0,SMALL($C7:$X7,AB$1))) -> 73 | AC7: =IF(ISERROR(SMALL($C7:$X7,AC$1)),0,IF($Y7=0,0,SMALL($C7:$X7,AC$1))) -> 75 | AD7: =IF(ISERROR(SMALL($C7:$X7,AD$1)),0,IF($Y7=0,0,SMALL($C7:$X7,AD$1))) -> 76 | AE7: =SUM(Z7:AD7) -> 363 | AF7: =IF(IF(ISERROR(SMALL($C7:$X7,Z$1)),0,IF($Y7=0,0,SMALL($C7:$X7,Z$1)))=0,100,Z7) -> 68 | AG7: =IF(IF(ISERROR(SMALL($C7:$X7,AA$1)),0,IF($Y7=0,0,SMALL($C7:$X7,AA$1)))=0,100,AA7) -> 71 | AH7: =IF(IF(ISERROR(SMALL($C7:$X7,AB$1)),0,IF($Y7=0,0,SMALL($C7:$X7,AB$1)))=0,100,AB7) -> 73 | AI7: =IF(IF(ISERROR(SMALL($C7:$X7,AC$1)),0,IF($Y7=0,0,SMALL($C7:$X7,AC$1)))=0,100,AC7) -> 75 | AJ7: =IF(IF(ISERROR(SMALL($C7:$X7,AD$1)),0,IF($Y7=0,0,SMALL($C7:$X7,AD$1)))=0,100,AD7) -> 76 | AK7: =SUM(AF7:AJ7) -> 363
A8: 7 | B8: Ann-Sofie Forsemalm | C8: 83 | D8: 77 | E8: 75 | G8: 75 | H8: 75 | I8: 83 | J8: 69 | K8: 75 | L8: 74 | N8: 71 | O8: 77 | P8: 78 | R8: 77 | Y8: =SUM(C8:X8) -> 989 | Z8: =IF(ISERROR(SMALL($C8:$X8,Z$1)),0,IF($Y8=0,0,SMALL($C8:$X8,Z$1))) -> 69 | AA8: =IF(ISERROR(SMALL($C8:$X8,AA$1)),0,IF($Y8=0,0,SMALL($C8:$X8,AA$1))) -> 71 | AB8: =IF(ISERROR(SMALL($C8:$X8,AB$1)),0,IF($Y8=0,0,SMALL($C8:$X8,AB$1))) -> 74 | AC8: =IF(ISERROR(SMALL($C8:$X8,AC$1)),0,IF($Y8=0,0,SMALL($C8:$X8,AC$1))) -> 75 | AD8: =IF(ISERROR(SMALL($C8:$X8,AD$1)),0,IF($Y8=0,0,SMALL($C8:$X8,AD$1))) -> 75 | AE8: =SUM(Z8:AD8) -> 364 | AF8: =IF(IF(ISERROR(SMALL($C8:$X8,Z$1)),0,IF($Y8=0,0,SMALL($C8:$X8,Z$1)))=0,100,Z8) -> 69 | AG8: =IF(IF(ISERROR(SMALL($C8:$X8,AA$1)),0,IF($Y8=0,0,SMALL($C8:$X8,AA$1)))=0,100,AA8) -> 71 | AH8: =IF(IF(ISERROR(SMALL($C8:$X8,AB$1)),0,IF($Y8=0,0,SMALL($C8:$X8,AB$1)))=0,100,AB8) -> 74 | AI8: =IF(IF(ISERROR(SMALL($C8:$X8,AC$1)),0,IF($Y8=0,0,SMALL($C8:$X8,AC$1)))=0,100,AC8) -> 75 | AJ8: =IF(IF(ISERROR(SMALL($C8:$X8,AD$1)),0,IF($Y8=0,0,SMALL($C8:$X8,AD$1)))=0,100,AD8) -> 75 | AK8: =SUM(AF8:AJ8) -> 364
A9: 8 | B9: Lena Sjöö | C9: 84 | D9: 80 | E9: 73 | F9: 72 | G9: 77 | H9: 78 | I9: 82 | J9: 72 | K9: 72 | N9: 79 | O9: 75 | Q9: 85 | R9: 77 | Y9: =SUM(C9:X9) -> 1006 | Z9: =IF(ISERROR(SMALL($C9:$X9,Z$1)),0,IF($Y9=0,0,SMALL($C9:$X9,Z$1))) -> 72 | AA9: =IF(ISERROR(SMALL($C9:$X9,AA$1)),0,IF($Y9=0,0,SMALL($C9:$X9,AA$1))) -> 72 | AB9: =IF(ISERROR(SMALL($C9:$X9,AB$1)),0,IF($Y9=0,0,SMALL($C9:$X9,AB$1))) -> 72 | AC9: =IF(ISERROR(SMALL($C9:$X9,AC$1)),0,IF($Y9=0,0,SMALL($C9:$X9,AC$1))) -> 73 | AD9: =IF(ISERROR(SMALL($C9:$X9,AD$1)),0,IF($Y9=0,0,SMALL($C9:$X9,AD$1))) -> 75 | AE9: =SUM(Z9:AD9) -> 364 | AF9: =IF(IF(ISERROR(SMALL($C9:$X9,Z$1)),0,IF($Y9=0,0,SMALL($C9:$X9,Z$1)))=0,100,Z9) -> 72 | AG9: =IF(IF(ISERROR(SMALL($C9:$X9,AA$1)),0,IF($Y9=0,0,SMALL($C9:$X9,AA$1)))=0,100,AA9) -> 72 | AH9: =IF(IF(ISERROR(SMALL($C9:$X9,AB$1)),0,IF($Y9=0,0,SMALL($C9:$X9,AB$1)))=0,100,AB9) -> 72 | AI9: =IF(IF(ISERROR(SMALL($C9:$X9,AC$1)),0,IF($Y9=0,0,SMALL($C9:$X9,AC$1)))=0,100,AC9) -> 73 | AJ9: =IF(IF(ISERROR(SMALL($C9:$X9,AD$1)),0,IF($Y9=0,0,SMALL($C9:$X9,AD$1)))=0,100,AD9) -> 75 | AK9: =SUM(AF9:AJ9) -> 364
A10: 9 | B10: May-Britt Stridh | C10: 75 | D10: 90 | E10: 78 | F10: 81 | G10: 80 | H10: 75 | I10: 77 | J10: 76 | K10: 72 | M10: 72 | N10: 73 | O10: 86 | P10: 90 | R10: 75 | Y10: =SUM(C10:X10) -> 1100 | Z10: =IF(ISERROR(SMALL($C10:$X10,Z$1)),0,IF($Y10=0,0,SMALL($C10:$X10,Z$1))) -> 72 | AA10: =IF(ISERROR(SMALL($C10:$X10,AA$1)),0,IF($Y10=0,0,SMALL($C10:$X10,AA$1))) -> 72 | AB10: =IF(ISERROR(SMALL($C10:$X10,AB$1)),0,IF($Y10=0,0,SMALL($C10:$X10,AB$1))) -> 73 | AC10: =IF(ISERROR(SMALL($C10:$X10,AC$1)),0,IF($Y10=0,0,SMALL($C10:$X10,AC$1))) -> 75 | AD10: =IF(ISERROR(SMALL($C10:$X10,AD$1)),0,IF($Y10=0,0,SMALL($C10:$X10,AD$1))) -> 75 | AE10: =SUM(Z10:AD10) -> 367 | AF10: =IF(IF(ISERROR(SMALL($C10:$X10,Z$1)),0,IF($Y10=0,0,SMALL($C10:$X10,Z$1)))=0,100,Z10) -> 72 | AG10: =IF(IF(ISERROR(SMALL($C10:$X10,AA$1)),0,IF($Y10=0,0,SMALL($C10:$X10,AA$1)))=0,100,AA10) -> 72 | AH10: =IF(IF(ISERROR(SMALL($C10:$X10,AB$1)),0,IF($Y10=0,0,SMALL($C10:$X10,AB$1)))=0,100,AB10) -> 73 | AI10: =IF(IF(ISERROR(SMALL($C10:$X10,AC$1)),0,IF($Y10=0,0,SMALL($C10:$X10,AC$1)))=0,100,AC10) -> 75 | AJ10: =IF(IF(ISERROR(SMALL($C10:$X10,AD$1)),0,IF($Y10=0,0,SMALL($C10:$X10,AD$1)))=0,100,AD10) -> 75 | AK10: =SUM(AF10:AJ10) -> 367
A11: 10 | B11: Agneta Sjögren | C11: 79 | E11: 83 | G11: 81 | H11: 95 | I11: 79 | J11: 80 | K11: 70 | L11: 81 | M11: 76 | N11: 72 | O11: 73 | P11: 79 | Q11: 77 | R11: 81 | Y11: =SUM(C11:X11) -> 1106 | Z11: =IF(ISERROR(SMALL($C11:$X11,Z$1)),0,IF($Y11=0,0,SMALL($C11:$X11,Z$1))) -> 70 | AA11: =IF(ISERROR(SMALL($C11:$X11,AA$1)),0,IF($Y11=0,0,SMALL($C11:$X11,AA$1))) -> 72 | AB11: =IF(ISERROR(SMALL($C11:$X11,AB$1)),0,IF($Y11=0,0,SMALL($C11:$X11,AB$1))) -> 73 | AC11: =IF(ISERROR(SMALL($C11:$X11,AC$1)),0,IF($Y11=0,0,SMALL($C11:$X11,AC$1))) -> 76 | AD11: =IF(ISERROR(SMALL($C11:$X11,AD$1)),0,IF($Y11=0,0,SMALL($C11:$X11,AD$1))) -> 77 | AE11: =SUM(Z11:AD11) -> 368 | AF11: =IF(IF(ISERROR(SMALL($C11:$X11,Z$1)),0,IF($Y11=0,0,SMALL($C11:$X11,Z$1)))=0,100,Z11) -> 70 | AG11: =IF(IF(ISERROR(SMALL($C11:$X11,AA$1)),0,IF($Y11=0,0,SMALL($C11:$X11,AA$1)))=0,100,AA11) -> 72 | AH11: =IF(IF(ISERROR(SMALL($C11:$X11,AB$1)),0,IF($Y11=0,0,SMALL($C11:$X11,AB$1)))=0,100,AB11) -> 73 | AI11: =IF(IF(ISERROR(SMALL($C11:$X11,AC$1)),0,IF($Y11=0,0,SMALL($C11:$X11,AC$1)))=0,100,AC11) -> 76 | AJ11: =IF(IF(ISERROR(SMALL($C11:$X11,AD$1)),0,IF($Y11=0,0,SMALL($C11:$X11,AD$1)))=0,100,AD11) -> 77 | AK11: =SUM(AF11:AJ11) -> 368
A12: 11 | B12: Gunnel Jibhammar-Asp | D12: 79 | E12: 78 | F12: 71 | G12: 77 | H12: 83 | I12: 81 | J12: 71 | L12: 73 | M12: 76 | R12: 80 | Y12: =SUM(C12:X12) -> 769 | Z12: =IF(ISERROR(SMALL($C12:$X12,Z$1)),0,IF($Y12=0,0,SMALL($C12:$X12,Z$1))) -> 71 | AA12: =IF(ISERROR(SMALL($C12:$X12,AA$1)),0,IF($Y12=0,0,SMALL($C12:$X12,AA$1))) -> 71 | AB12: =IF(ISERROR(SMALL($C12:$X12,AB$1)),0,IF($Y12=0,0,SMALL($C12:$X12,AB$1))) -> 73 | AC12: =IF(ISERROR(SMALL($C12:$X12,AC$1)),0,IF($Y12=0,0,SMALL($C12:$X12,AC$1))) -> 76 | AD12: =IF(ISERROR(SMALL($C12:$X12,AD$1)),0,IF($Y12=0,0,SMALL($C12:$X12,AD$1))) -> 77 | AE12: =SUM(Z12:AD12) -> 368 | AF12: =IF(IF(ISERROR(SMALL($C12:$X12,Z$1)),0,IF($Y12=0,0,SMALL($C12:$X12,Z$1)))=0,100,Z12) -> 71 | AG12: =IF(IF(ISERROR(SMALL($C12:$X12,AA$1)),0,IF($Y12=0,0,SMALL($C12:$X12,AA$1)))=0,100,AA12) -> 71 | AH12: =IF(IF(ISERROR(SMALL($C12:$X12,AB$1)),0,IF($Y12=0,0,SMALL($C12:$X12,AB$1)))=0,100,AB12) -> 73 | AI12: =IF(IF(ISERROR(SMALL($C12:$X12,AC$1)),0,IF($Y12=0,0,SMALL($C12:$X12,AC$1)))=0,100,AC12) -> 76 | AJ12: =IF(IF(ISERROR(SMALL($C12:$X12,AD$1)),0,IF($Y12=0,0,SMALL($C12:$X12,AD$1)))=0,100,AD12) -> 77 | AK12: =SUM(AF12:AJ12) -> 368
A13: 12 | B13: Madlene Bengtsson | C13: 77 | D13: 82 | E13: 79 | F13: 75 | G13: 77 | H13: 68 | J13: 79 | K13: 75 | M13: 74 | N13: 76 | O13: 78 | P13: 79 | Q13: 77 | R13: 81 | Y13: =SUM(C13:X13) -> 1077 | Z13: =IF(ISERROR(SMALL($C13:$X13,Z$1)),0,IF($Y13=0,0,SMALL($C13:$X13,Z$1))) -> 68 | AA13: =IF(ISERROR(SMALL($C13:$X13,AA$1)),0,IF($Y13=0,0,SMALL($C13:$X13,AA$1))) -> 74 | AB13: =IF(ISERROR(SMALL($C13:$X13,AB$1)),0,IF($Y13=0,0,SMALL($C13:$X13,AB$1))) -> 75 | AC13: =IF(ISERROR(SMALL($C13:$X13,AC$1)),0,IF($Y13=0,0,SMALL($C13:$X13,AC$1))) -> 75 | AD13: =IF(ISERROR(SMALL($C13:$X13,AD$1)),0,IF($Y13=0,0,SMALL($C13:$X13,AD$1))) -> 76 | AE13: =SUM(Z13:AD13) -> 368 | AF13: =IF(IF(ISERROR(SMALL($C13:$X13,Z$1)),0,IF($Y13=0,0,SMALL($C13:$X13,Z$1)))=0,100,Z13) -> 68 | AG13: =IF(IF(ISERROR(SMALL($C13:$X13,AA$1)),0,IF($Y13=0,0,SMALL($C13:$X13,AA$1)))=0,100,AA13) -> 74 | AH13: =IF(IF(ISERROR(SMALL($C13:$X13,AB$1)),0,IF($Y13=0,0,SMALL($C13:$X13,AB$1)))=0,100,AB13) -> 75 | AI13: =IF(IF(ISERROR(SMALL($C13:$X13,AC$1)),0,IF($Y13=0,0,SMALL($C13:$X13,AC$1)))=0,100,AC13) -> 75 | AJ13: =IF(IF(ISERROR(SMALL($C13:$X13,AD$1)),0,IF($Y13=0,0,SMALL($C13:$X13,AD$1)))=0,100,AD13) -> 76 | AK13: =SUM(AF13:AJ13) -> 368
A14: 13 | B14: Liselotte Ring | C14: 71 | D14: 80 | E14: 87 | F14: 83 | G14: 76 | H14: 83 | I14: 79 | J14: 76 | K14: 72 | L14: 77 | M14: 87 | N14: 83 | O14: 74 | P14: 87 | Q14: 80 | R14: 83 | Y14: =SUM(C14:X14) -> 1278 | Z14: =IF(ISERROR(SMALL($C14:$X14,Z$1)),0,IF($Y14=0,0,SMALL($C14:$X14,Z$1))) -> 71 | AA14: =IF(ISERROR(SMALL($C14:$X14,AA$1)),0,IF($Y14=0,0,SMALL($C14:$X14,AA$1))) -> 72 | AB14: =IF(ISERROR(SMALL($C14:$X14,AB$1)),0,IF($Y14=0,0,SMALL($C14:$X14,AB$1))) -> 74 | AC14: =IF(ISERROR(SMALL($C14:$X14,AC$1)),0,IF($Y14=0,0,SMALL($C14:$X14,AC$1))) -> 76 | AD14: =IF(ISERROR(SMALL($C14:$X14,AD$1)),0,IF($Y14=0,0,SMALL($C14:$X14,AD$1))) -> 76 | AE14: =SUM(Z14:AD14) -> 369 | AF14: =IF(IF(ISERROR(SMALL($C14:$X14,Z$1)),0,IF($Y14=0,0,SMALL($C14:$X14,Z$1)))=0,100,Z14) -> 71 | AG14: =IF(IF(ISERROR(SMALL($C14:$X14,AA$1)),0,IF($Y14=0,0,SMALL($C14:$X14,AA$1)))=0,100,AA14) -> 72 | AH14: =IF(IF(ISERROR(SMALL($C14:$X14,AB$1)),0,IF($Y14=0,0,SMALL($C14:$X14,AB$1)))=0,100,AB14) -> 74 | AI14: =IF(IF(ISERROR(SMALL($C14:$X14,AC$1)),0,IF($Y14=0,0,SMALL($C14:$X14,AC$1)))=0,100,AC14) -> 76 | AJ14: =IF(IF(ISERROR(SMALL($C14:$X14,AD$1)),0,IF($Y14=0,0,SMALL($C14:$X14,AD$1)))=0,100,AD14) -> 76 | AK14: =SUM(AF14:AJ14) -> 369
A15: 14 | B15: Marie Kennmark | C15: 83 | D15: 78 | E15: 76 | F15: 71 | G15: 75 | H15: 80 | I15: 75 | J15: 78 | K15: 87 | L15: 76 | M15: 72 | N15: 85 | O15: 78 | Q15: 77 | R15: 76 | Y15: =SUM(C15:X15) -> 1167 | Z15: =IF(ISERROR(SMALL($C15:$X15,Z$1)),0,IF($Y15=0,0,SMALL($C15:$X15,Z$1))) -> 71 | AA15: =IF(ISERROR(SMALL($C15:$X15,AA$1)),0,IF($Y15=0,0,SMALL($C15:$X15,AA$1))) -> 72 | AB15: =IF(ISERROR(SMALL($C15:$X15,AB$1)),0,IF($Y15=0,0,SMALL($C15:$X15,AB$1))) -> 75 | AC15: =IF(ISERROR(SMALL($C15:$X15,AC$1)),0,IF($Y15=0,0,SMALL($C15:$X15,AC$1))) -> 75 | AD15: =IF(ISERROR(SMALL($C15:$X15,AD$1)),0,IF($Y15=0,0,SMALL($C15:$X15,AD$1))) -> 76 | AE15: =SUM(Z15:AD15) -> 369 | AF15: =IF(IF(ISERROR(SMALL($C15:$X15,Z$1)),0,IF($Y15=0,0,SMALL($C15:$X15,Z$1)))=0,100,Z15) -> 71 | AG15: =IF(IF(ISERROR(SMALL($C15:$X15,AA$1)),0,IF($Y15=0,0,SMALL($C15:$X15,AA$1)))=0,100,AA15) -> 72 | AH15: =IF(IF(ISERROR(SMALL($C15:$X15,AB$1)),0,IF($Y15=0,0,SMALL($C15:$X15,AB$1)))=0,100,AB15) -> 75 | AI15: =IF(IF(ISERROR(SMALL($C15:$X15,AC$1)),0,IF($Y15=0,0,SMALL($C15:$X15,AC$1)))=0,100,AC15) -> 75 | AJ15: =IF(IF(ISERROR(SMALL($C15:$X15,AD$1)),0,IF($Y15=0,0,SMALL($C15:$X15,AD$1)))=0,100,AD15) -> 76 | AK15: =SUM(AF15:AJ15) -> 369
A16: 15 | B16: Carina Johansson | C16: 92 | D16: 79 | G16: 86 | H16: 83 | I16: 85 | J16: 79 | K16: 76 | L16: 75 | M16: 70 | N16: 74 | Q16: 77 | Y16: =SUM(C16:X16) -> 876 | Z16: =IF(ISERROR(SMALL($C16:$X16,Z$1)),0,IF($Y16=0,0,SMALL($C16:$X16,Z$1))) -> 70 | AA16: =IF(ISERROR(SMALL($C16:$X16,AA$1)),0,IF($Y16=0,0,SMALL($C16:$X16,AA$1))) -> 74 | AB16: =IF(ISERROR(SMALL($C16:$X16,AB$1)),0,IF($Y16=0,0,SMALL($C16:$X16,AB$1))) -> 75 | AC16: =IF(ISERROR(SMALL($C16:$X16,AC$1)),0,IF($Y16=0,0,SMALL($C16:$X16,AC$1))) -> 76 | AD16: =IF(ISERROR(SMALL($C16:$X16,AD$1)),0,IF($Y16=0,0,SMALL($C16:$X16,AD$1))) -> 77 | AE16: =SUM(Z16:AD16) -> 372 | AF16: =IF(IF(ISERROR(SMALL($C16:$X16,Z$1)),0,IF($Y16=0,0,SMALL($C16:$X16,Z$1)))=0,100,Z16) -> 70 | AG16: =IF(IF(ISERROR(SMALL($C16:$X16,AA$1)),0,IF($Y16=0,0,SMALL($C16:$X16,AA$1)))=0,100,AA16) -> 74 | AH16: =IF(IF(ISERROR(SMALL($C16:$X16,AB$1)),0,IF($Y16=0,0,SMALL($C16:$X16,AB$1)))=0,100,AB16) -> 75 | AI16: =IF(IF(ISERROR(SMALL($C16:$X16,AC$1)),0,IF($Y16=0,0,SMALL($C16:$X16,AC$1)))=0,100,AC16) -> 76 | AJ16: =IF(IF(ISERROR(SMALL($C16:$X16,AD$1)),0,IF($Y16=0,0,SMALL($C16:$X16,AD$1)))=0,100,AD16) -> 77 | AK16: =SUM(AF16:AJ16) -> 372
A17: 16 | B17: Lena Klingsedt | E17: 73 | G17: 81 | H17: 72 | I17: 78 | J17: 75 | L17: 78 | M17: 76 | Y17: =SUM(C17:X17) -> 533 | Z17: =IF(ISERROR(SMALL($C17:$X17,Z$1)),0,IF($Y17=0,0,SMALL($C17:$X17,Z$1))) -> 72 | AA17: =IF(ISERROR(SMALL($C17:$X17,AA$1)),0,IF($Y17=0,0,SMALL($C17:$X17,AA$1))) -> 73 | AB17: =IF(ISERROR(SMALL($C17:$X17,AB$1)),0,IF($Y17=0,0,SMALL($C17:$X17,AB$1))) -> 75 | AC17: =IF(ISERROR(SMALL($C17:$X17,AC$1)),0,IF($Y17=0,0,SMALL($C17:$X17,AC$1))) -> 76 | AD17: =IF(ISERROR(SMALL($C17:$X17,AD$1)),0,IF($Y17=0,0,SMALL($C17:$X17,AD$1))) -> 78 | AE17: =SUM(Z17:AD17) -> 374 | AF17: =IF(IF(ISERROR(SMALL($C17:$X17,Z$1)),0,IF($Y17=0,0,SMALL($C17:$X17,Z$1)))=0,100,Z17) -> 72 | AG17: =IF(IF(ISERROR(SMALL($C17:$X17,AA$1)),0,IF($Y17=0,0,SMALL($C17:$X17,AA$1)))=0,100,AA17) -> 73 | AH17: =IF(IF(ISERROR(SMALL($C17:$X17,AB$1)),0,IF($Y17=0,0,SMALL($C17:$X17,AB$1)))=0,100,AB17) -> 75 | AI17: =IF(IF(ISERROR(SMALL($C17:$X17,AC$1)),0,IF($Y17=0,0,SMALL($C17:$X17,AC$1)))=0,100,AC17) -> 76 | AJ17: =IF(IF(ISERROR(SMALL($C17:$X17,AD$1)),0,IF($Y17=0,0,SMALL($C17:$X17,AD$1)))=0,100,AD17) -> 78 | AK17: =SUM(AF17:AJ17) -> 374
A18: 17 | B18: Agneta Westman | C18: 83 | E18: 79 | F18: 76 | G18: 82 | H18: 75 | I18: 71 | J18: 78 | L18: 75 | M18: 85 | N18: 79 | Y18: =SUM(C18:X18) -> 783 | Z18: =IF(ISERROR(SMALL($C18:$X18,Z$1)),0,IF($Y18=0,0,SMALL($C18:$X18,Z$1))) -> 71 | AA18: =IF(ISERROR(SMALL($C18:$X18,AA$1)),0,IF($Y18=0,0,SMALL($C18:$X18,AA$1))) -> 75 | AB18: =IF(ISERROR(SMALL($C18:$X18,AB$1)),0,IF($Y18=0,0,SMALL($C18:$X18,AB$1))) -> 75 | AC18: =IF(ISERROR(SMALL($C18:$X18,AC$1)),0,IF($Y18=0,0,SMALL($C18:$X18,AC$1))) -> 76 | AD18: =IF(ISERROR(SMALL($C18:$X18,AD$1)),0,IF($Y18=0,0,SMALL($C18:$X18,AD$1))) -> 78 | AE18: =SUM(Z18:AD18) -> 375 | AF18: =IF(IF(ISERROR(SMALL($C18:$X18,Z$1)),0,IF($Y18=0,0,SMALL($C18:$X18,Z$1)))=0,100,Z18) -> 71 | AG18: =IF(IF(ISERROR(SMALL($C18:$X18,AA$1)),0,IF($Y18=0,0,SMALL($C18:$X18,AA$1)))=0,100,AA18) -> 75 | AH18: =IF(IF(ISERROR(SMALL($C18:$X18,AB$1)),0,IF($Y18=0,0,SMALL($C18:$X18,AB$1)))=0,100,AB18) -> 75 | AI18: =IF(IF(ISERROR(SMALL($C18:$X18,AC$1)),0,IF($Y18=0,0,SMALL($C18:$X18,AC$1)))=0,100,AC18) -> 76 | AJ18: =IF(IF(ISERROR(SMALL($C18:$X18,AD$1)),0,IF($Y18=0,0,SMALL($C18:$X18,AD$1)))=0,100,AD18) -> 78 | AK18: =SUM(AF18:AJ18) -> 375
A19: 18 | B19: Heléne Haraldsson | E19: 80 | G19: 73 | I19: 75 | J19: 71 | L19: 77 | N19: 85 | R19: 79 | Y19: =SUM(C19:X19) -> 540 | Z19: =IF(ISERROR(SMALL($C19:$X19,Z$1)),0,IF($Y19=0,0,SMALL($C19:$X19,Z$1))) -> 71 | AA19: =IF(ISERROR(SMALL($C19:$X19,AA$1)),0,IF($Y19=0,0,SMALL($C19:$X19,AA$1))) -> 73 | AB19: =IF(ISERROR(SMALL($C19:$X19,AB$1)),0,IF($Y19=0,0,SMALL($C19:$X19,AB$1))) -> 75 | AC19: =IF(ISERROR(SMALL($C19:$X19,AC$1)),0,IF($Y19=0,0,SMALL($C19:$X19,AC$1))) -> 77 | AD19: =IF(ISERROR(SMALL($C19:$X19,AD$1)),0,IF($Y19=0,0,SMALL($C19:$X19,AD$1))) -> 79 | AE19: =SUM(Z19:AD19) -> 375 | AF19: =IF(IF(ISERROR(SMALL($C19:$X19,Z$1)),0,IF($Y19=0,0,SMALL($C19:$X19,Z$1)))=0,100,Z19) -> 71 | AG19: =IF(IF(ISERROR(SMALL($C19:$X19,AA$1)),0,IF($Y19=0,0,SMALL($C19:$X19,AA$1)))=0,100,AA19) -> 73 | AH19: =IF(IF(ISERROR(SMALL($C19:$X19,AB$1)),0,IF($Y19=0,0,SMALL($C19:$X19,AB$1)))=0,100,AB19) -> 75 | AI19: =IF(IF(ISERROR(SMALL($C19:$X19,AC$1)),0,IF($Y19=0,0,SMALL($C19:$X19,AC$1)))=0,100,AC19) -> 77 | AJ19: =IF(IF(ISERROR(SMALL($C19:$X19,AD$1)),0,IF($Y19=0,0,SMALL($C19:$X19,AD$1)))=0,100,AD19) -> 79 | AK19: =SUM(AF19:AJ19) -> 375
A20: 19 | B20: Ann Louise Parmö | D20: 90 | F20: 93 | H20: 89 | I20: 87 | K20: 86 | L20: 77 | Y20: =SUM(C20:X20) -> 522 | Z20: =IF(ISERROR(SMALL($C20:$X20,Z$1)),0,IF($Y20=0,0,SMALL($C20:$X20,Z$1))) -> 77 | AA20: =IF(ISERROR(SMALL($C20:$X20,AA$1)),0,IF($Y20=0,0,SMALL($C20:$X20,AA$1))) -> 86 | AB20: =IF(ISERROR(SMALL($C20:$X20,AB$1)),0,IF($Y20=0,0,SMALL($C20:$X20,AB$1))) -> 87 | AC20: =IF(ISERROR(SMALL($C20:$X20,AC$1)),0,IF($Y20=0,0,SMALL($C20:$X20,AC$1))) -> 89 | AD20: =IF(ISERROR(SMALL($C20:$X20,AD$1)),0,IF($Y20=0,0,SMALL($C20:$X20,AD$1))) -> 90 | AE20: =SUM(Z20:AD20) -> 429 | AF20: =IF(IF(ISERROR(SMALL($C20:$X20,Z$1)),0,IF($Y20=0,0,SMALL($C20:$X20,Z$1)))=0,100,Z20) -> 77 | AG20: =IF(IF(ISERROR(SMALL($C20:$X20,AA$1)),0,IF($Y20=0,0,SMALL($C20:$X20,AA$1)))=0,100,AA20) -> 86 | AH20: =IF(IF(ISERROR(SMALL($C20:$X20,AB$1)),0,IF($Y20=0,0,SMALL($C20:$X20,AB$1)))=0,100,AB20) -> 87 | AI20: =IF(IF(ISERROR(SMALL($C20:$X20,AC$1)),0,IF($Y20=0,0,SMALL($C20:$X20,AC$1)))=0,100,AC20) -> 89 | AJ20: =IF(IF(ISERROR(SMALL($C20:$X20,AD$1)),0,IF($Y20=0,0,SMALL($C20:$X20,AD$1)))=0,100,AD20) -> 90 | AK20: =SUM(AF20:AJ20) -> 429
A21: 20 | B21: Marie Landström | I21: 81 | N21: 77 | O21: 78 | Y21: =SUM(C21:X21) -> 236 | Z21: =IF(ISERROR(SMALL($C21:$X21,Z$1)),0,IF($Y21=0,0,SMALL($C21:$X21,Z$1))) -> 77 | AA21: =IF(ISERROR(SMALL($C21:$X21,AA$1)),0,IF($Y21=0,0,SMALL($C21:$X21,AA$1))) -> 78 | AB21: =IF(ISERROR(SMALL($C21:$X21,AB$1)),0,IF($Y21=0,0,SMALL($C21:$X21,AB$1))) -> 81 | AC21: =IF(ISERROR(SMALL($C21:$X21,AC$1)),0,IF($Y21=0,0,SMALL($C21:$X21,AC$1))) -> 0 | AD21: =IF(ISERROR(SMALL($C21:$X21,AD$1)),0,IF($Y21=0,0,SMALL($C21:$X21,AD$1))) -> 0 | AE21: =SUM(Z21:AD21) -> 236 | AF21: =IF(IF(ISERROR(SMALL($C21:$X21,Z$1)),0,IF($Y21=0,0,SMALL($C21:$X21,Z$1)))=0,100,Z21) -> 77 | AG21: =IF(IF(ISERROR(SMALL($C21:$X21,AA$1)),0,IF($Y21=0,0,SMALL($C21:$X21,AA$1)))=0,100,AA21) -> 78 | AH21: =IF(IF(ISERROR(SMALL($C21:$X21,AB$1)),0,IF($Y21=0,0,SMALL($C21:$X21,AB$1)))=0,100,AB21) -> 81 | AI21: =IF(IF(ISERROR(SMALL($C21:$X21,AC$1)),0,IF($Y21=0,0,SMALL($C21:$X21,AC$1)))=0,100,AC21) -> 100 | AJ21: =IF(IF(ISERROR(SMALL($C21:$X21,AD$1)),0,IF($Y21=0,0,SMALL($C21:$X21,AD$1)))=0,100,AD21) -> 100 | AK21: =SUM(AF21:AJ21) -> 436
A22: 21 | B22: Chatrine Osbeck | I22: 77 | Y22: =SUM(C22:X22) -> 77 | Z22: =IF(ISERROR(SMALL($C22:$X22,Z$1)),0,IF($Y22=0,0,SMALL($C22:$X22,Z$1))) -> 77 | AA22: =IF(ISERROR(SMALL($C22:$X22,AA$1)),0,IF($Y22=0,0,SMALL($C22:$X22,AA$1))) -> 0 | AB22: =IF(ISERROR(SMALL($C22:$X22,AB$1)),0,IF($Y22=0,0,SMALL($C22:$X22,AB$1))) -> 0 | AC22: =IF(ISERROR(SMALL($C22:$X22,AC$1)),0,IF($Y22=0,0,SMALL($C22:$X22,AC$1))) -> 0 | AD22: =IF(ISERROR(SMALL($C22:$X22,AD$1)),0,IF($Y22=0,0,SMALL($C22:$X22,AD$1))) -> 0 | AE22: =SUM(Z22:AD22) -> 77 | AF22: =IF(IF(ISERROR(SMALL($C22:$X22,Z$1)),0,IF($Y22=0,0,SMALL($C22:$X22,Z$1)))=0,100,Z22) -> 77 | AG22: =IF(IF(ISERROR(SMALL($C22:$X22,AA$1)),0,IF($Y22=0,0,SMALL($C22:$X22,AA$1)))=0,100,AA22) -> 100 | AH22: =IF(IF(ISERROR(SMALL($C22:$X22,AB$1)),0,IF($Y22=0,0,SMALL($C22:$X22,AB$1)))=0,100,AB22) -> 100 | AI22: =IF(IF(ISERROR(SMALL($C22:$X22,AC$1)),0,IF($Y22=0,0,SMALL($C22:$X22,AC$1)))=0,100,AC22) -> 100 | AJ22: =IF(IF(ISERROR(SMALL($C22:$X22,AD$1)),0,IF($Y22=0,0,SMALL($C22:$X22,AD$1)))=0,100,AD22) -> 100 | AK22: =SUM(AF22:AJ22) -> 477
A23: 22 | Y23: =SUM(C23:X23) -> 0 | Z23: =IF(ISERROR(SMALL($C23:$X23,Z$1)),0,IF($Y23=0,0,SMALL($C23:$X23,Z$1))) -> 0 | AA23: =IF(ISERROR(SMALL($C23:$X23,AA$1)),0,IF($Y23=0,0,SMALL($C23:$X23,AA$1))) -> 0 | AB23: =IF(ISERROR(SMALL($C23:$X23,AB$1)),0,IF($Y23=0,0,SMALL($C23:$X23,AB$1))) -> 0 | AC23: =IF(ISERROR(SMALL($C23:$X23,AC$1)),0,IF($Y23=0,0,SMALL($C23:$X23,AC$1))) -> 0 | AD23: =IF(ISERROR(SMALL($C23:$X23,AD$1)),0,IF($Y23=0,0,SMALL($C23:$X23,AD$1))) -> 0 | AE23: =SUM(Z23:AD23) -> 0 | AF23: =IF(IF(ISERROR(SMALL($C23:$X23,Z$1)),0,IF($Y23=0,0,SMALL($C23:$X23,Z$1)))=0,100,Z23) -> 100 | AG23: =IF(IF(ISERROR(SMALL($C23:$X23,AA$1)),0,IF($Y23=0,0,SMALL($C23:$X23,AA$1)))=0,100,AA23) -> 100 | AH23: =IF(IF(ISERROR(SMALL($C23:$X23,AB$1)),0,IF($Y23=0,0,SMALL($C23:$X23,AB$1)))=0,100,AB23) -> 100 | AI23: =IF(IF(ISERROR(SMALL($C23:$X23,AC$1)),0,IF($Y23=0,0,SMALL($C23:$X23,AC$1)))=0,100,AC23) -> 100 | AJ23: =IF(IF(ISERROR(SMALL($C23:$X23,AD$1)),0,IF($Y23=0,0,SMALL($C23:$X23,AD$1)))=0,100,AD23) -> 100 | AK23: =SUM(AF23:AJ23) -> 500
A24: 23 | Y24: =SUM(C24:X24) -> 0 | Z24: =IF(ISERROR(SMALL($C24:$X24,Z$1)),0,IF($Y24=0,0,SMALL($C24:$X24,Z$1))) -> 0 | AA24: =IF(ISERROR(SMALL($C24:$X24,AA$1)),0,IF($Y24=0,0,SMALL($C24:$X24,AA$1))) -> 0 | AB24: =IF(ISERROR(SMALL($C24:$X24,AB$1)),0,IF($Y24=0,0,SMALL($C24:$X24,AB$1))) -> 0 | AC24: =IF(ISERROR(SMALL($C24:$X24,AC$1)),0,IF($Y24=0,0,SMALL($C24:$X24,AC$1))) -> 0 | AD24: =IF(ISERROR(SMALL($C24:$X24,AD$1)),0,IF($Y24=0,0,SMALL($C24:$X24,AD$1))) -> 0 | AE24: =SUM(Z24:AD24) -> 0 | AF24: =IF(IF(ISERROR(SMALL($C24:$X24,Z$1)),0,IF($Y24=0,0,SMALL($C24:$X24,Z$1)))=0,100,Z24) -> 100 | AG24: =IF(IF(ISERROR(SMALL($C24:$X24,AA$1)),0,IF($Y24=0,0,SMALL($C24:$X24,AA$1)))=0,100,AA24) -> 100 | AH24: =IF(IF(ISERROR(SMALL($C24:$X24,AB$1)),0,IF($Y24=0,0,SMALL($C24:$X24,AB$1)))=0,100,AB24) -> 100 | AI24: =IF(IF(ISERROR(SMALL($C24:$X24,AC$1)),0,IF($Y24=0,0,SMALL($C24:$X24,AC$1)))=0,100,AC24) -> 100 | AJ24: =IF(IF(ISERROR(SMALL($C24:$X24,AD$1)),0,IF($Y24=0,0,SMALL($C24:$X24,AD$1)))=0,100,AD24) -> 100 | AK24: =SUM(AF24:AJ24) -> 500
A25: 24 | Y25: =SUM(C25:X25) -> 0 | Z25: =IF(ISERROR(SMALL($C25:$X25,Z$1)),0,IF($Y25=0,0,SMALL($C25:$X25,Z$1))) -> 0 | AA25: =IF(ISERROR(SMALL($C25:$X25,AA$1)),0,IF($Y25=0,0,SMALL($C25:$X25,AA$1))) -> 0 | AB25: =IF(ISERROR(SMALL($C25:$X25,AB$1)),0,IF($Y25=0,0,SMALL($C25:$X25,AB$1))) -> 0 | AC25: =IF(ISERROR(SMALL($C25:$X25,AC$1)),0,IF($Y25=0,0,SMALL($C25:$X25,AC$1))) -> 0 | AD25: =IF(ISERROR(SMALL($C25:$X25,AD$1)),0,IF($Y25=0,0,SMALL($C25:$X25,AD$1))) -> 0 | AE25: =SUM(Z25:AD25) -> 0 | AF25: =IF(IF(ISERROR(SMALL($C25:$X25,Z$1)),0,IF($Y25=0,0,SMALL($C25:$X25,Z$1)))=0,100,Z25) -> 100 | AG25: =IF(IF(ISERROR(SMALL($C25:$X25,AA$1)),0,IF($Y25=0,0,SMALL($C25:$X25,AA$1)))=0,100,AA25) -> 100 | AH25: =IF(IF(ISERROR(SMALL($C25:$X25,AB$1)),0,IF($Y25=0,0,SMALL($C25:$X25,AB$1)))=0,100,AB25) -> 100 | AI25: =IF(IF(ISERROR(SMALL($C25:$X25,AC$1)),0,IF($Y25=0,0,SMALL($C25:$X25,AC$1)))=0,100,AC25) -> 100 | AJ25: =IF(IF(ISERROR(SMALL($C25:$X25,AD$1)),0,IF($Y25=0,0,SMALL($C25:$X25,AD$1)))=0,100,AD25) -> 100 | AK25: =SUM(AF25:AJ25) -> 500
A26: 25 | Y26: =SUM(C26:X26) -> 0 | Z26: =IF(ISERROR(SMALL($C26:$X26,Z$1)),0,IF($Y26=0,0,SMALL($C26:$X26,Z$1))) -> 0 | AA26: =IF(ISERROR(SMALL($C26:$X26,AA$1)),0,IF($Y26=0,0,SMALL($C26:$X26,AA$1))) -> 0 | AB26: =IF(ISERROR(SMALL($C26:$X26,AB$1)),0,IF($Y26=0,0,SMALL($C26:$X26,AB$1))) -> 0 | AC26: =IF(ISERROR(SMALL($C26:$X26,AC$1)),0,IF($Y26=0,0,SMALL($C26:$X26,AC$1))) -> 0 | AD26: =IF(ISERROR(SMALL($C26:$X26,AD$1)),0,IF($Y26=0,0,SMALL($C26:$X26,AD$1))) -> 0 | AE26: =SUM(Z26:AD26) -> 0 | AF26: =IF(IF(ISERROR(SMALL($C26:$X26,Z$1)),0,IF($Y26=0,0,SMALL($C26:$X26,Z$1)))=0,100,Z26) -> 100 | AG26: =IF(IF(ISERROR(SMALL($C26:$X26,AA$1)),0,IF($Y26=0,0,SMALL($C26:$X26,AA$1)))=0,100,AA26) -> 100 | AH26: =IF(IF(ISERROR(SMALL($C26:$X26,AB$1)),0,IF($Y26=0,0,SMALL($C26:$X26,AB$1)))=0,100,AB26) -> 100 | AI26: =IF(IF(ISERROR(SMALL($C26:$X26,AC$1)),0,IF($Y26=0,0,SMALL($C26:$X26,AC$1)))=0,100,AC26) -> 100 | AJ26: =IF(IF(ISERROR(SMALL($C26:$X26,AD$1)),0,IF($Y26=0,0,SMALL($C26:$X26,AD$1)))=0,100,AD26) -> 100 | AK26: =SUM(AF26:AJ26) -> 500
A27: 26 | Y27: =SUM(C27:X27) -> 0 | Z27: =IF(ISERROR(SMALL($C27:$X27,Z$1)),0,IF($Y27=0,0,SMALL($C27:$X27,Z$1))) -> 0 | AA27: =IF(ISERROR(SMALL($C27:$X27,AA$1)),0,IF($Y27=0,0,SMALL($C27:$X27,AA$1))) -> 0 | AB27: =IF(ISERROR(SMALL($C27:$X27,AB$1)),0,IF($Y27=0,0,SMALL($C27:$X27,AB$1))) -> 0 | AC27: =IF(ISERROR(SMALL($C27:$X27,AC$1)),0,IF($Y27=0,0,SMALL($C27:$X27,AC$1))) -> 0 | AD27: =IF(ISERROR(SMALL($C27:$X27,AD$1)),0,IF($Y27=0,0,SMALL($C27:$X27,AD$1))) -> 0 | AE27: =SUM(Z27:AD27) -> 0 | AF27: =IF(IF(ISERROR(SMALL($C27:$X27,Z$1)),0,IF($Y27=0,0,SMALL($C27:$X27,Z$1)))=0,100,Z27) -> 100 | AG27: =IF(IF(ISERROR(SMALL($C27:$X27,AA$1)),0,IF($Y27=0,0,SMALL($C27:$X27,AA$1)))=0,100,AA27) -> 100 | AH27: =IF(IF(ISERROR(SMALL($C27:$X27,AB$1)),0,IF($Y27=0,0,SMALL($C27:$X27,AB$1)))=0,100,AB27) -> 100 | AI27: =IF(IF(ISERROR(SMALL($C27:$X27,AC$1)),0,IF($Y27=0,0,SMALL($C27:$X27,AC$1)))=0,100,AC27) -> 100 | AJ27: =IF(IF(ISERROR(SMALL($C27:$X27,AD$1)),0,IF($Y27=0,0,SMALL($C27:$X27,AD$1)))=0,100,AD27) -> 100 | AK27: =SUM(AF27:AJ27) -> 500
A28: 27 | Y28: =SUM(C28:X28) -> 0 | Z28: =IF(ISERROR(SMALL($C28:$X28,Z$1)),0,IF($Y28=0,0,SMALL($C28:$X28,Z$1))) -> 0 | AA28: =IF(ISERROR(SMALL($C28:$X28,AA$1)),0,IF($Y28=0,0,SMALL($C28:$X28,AA$1))) -> 0 | AB28: =IF(ISERROR(SMALL($C28:$X28,AB$1)),0,IF($Y28=0,0,SMALL($C28:$X28,AB$1))) -> 0 | AC28: =IF(ISERROR(SMALL($C28:$X28,AC$1)),0,IF($Y28=0,0,SMALL($C28:$X28,AC$1))) -> 0 | AD28: =IF(ISERROR(SMALL($C28:$X28,AD$1)),0,IF($Y28=0,0,SMALL($C28:$X28,AD$1))) -> 0 | AE28: =SUM(Z28:AD28) -> 0 | AF28: =IF(IF(ISERROR(SMALL($C28:$X28,Z$1)),0,IF($Y28=0,0,SMALL($C28:$X28,Z$1)))=0,100,Z28) -> 100 | AG28: =IF(IF(ISERROR(SMALL($C28:$X28,AA$1)),0,IF($Y28=0,0,SMALL($C28:$X28,AA$1)))=0,100,AA28) -> 100 | AH28: =IF(IF(ISERROR(SMALL($C28:$X28,AB$1)),0,IF($Y28=0,0,SMALL($C28:$X28,AB$1)))=0,100,AB28) -> 100 | AI28: =IF(IF(ISERROR(SMALL($C28:$X28,AC$1)),0,IF($Y28=0,0,SMALL($C28:$X28,AC$1)))=0,100,AC28) -> 100 | AJ28: =IF(IF(ISERROR(SMALL($C28:$X28,AD$1)),0,IF($Y28=0,0,SMALL($C28:$X28,AD$1)))=0,100,AD28) -> 100 | AK28: =SUM(AF28:AJ28) -> 500
A29: 28 | Y29: =SUM(C29:X29) -> 0 | Z29: =IF(ISERROR(SMALL($C29:$X29,Z$1)),0,IF($Y29=0,0,SMALL($C29:$X29,Z$1))) -> 0 | AA29: =IF(ISERROR(SMALL($C29:$X29,AA$1)),0,IF($Y29=0,0,SMALL($C29:$X29,AA$1))) -> 0 | AB29: =IF(ISERROR(SMALL($C29:$X29,AB$1)),0,IF($Y29=0,0,SMALL($C29:$X29,AB$1))) -> 0 | AC29: =IF(ISERROR(SMALL($C29:$X29,AC$1)),0,IF($Y29=0,0,SMALL($C29:$X29,AC$1))) -> 0 | AD29: =IF(ISERROR(SMALL($C29:$X29,AD$1)),0,IF($Y29=0,0,SMALL($C29:$X29,AD$1))) -> 0 | AE29: =SUM(Z29:AD29) -> 0 | AF29: =IF(IF(ISERROR(SMALL($C29:$X29,Z$1)),0,IF($Y29=0,0,SMALL($C29:$X29,Z$1)))=0,100,Z29) -> 100 | AG29: =IF(IF(ISERROR(SMALL($C29:$X29,AA$1)),0,IF($Y29=0,0,SMALL($C29:$X29,AA$1)))=0,100,AA29) -> 100 | AH29: =IF(IF(ISERROR(SMALL($C29:$X29,AB$1)),0,IF($Y29=0,0,SMALL($C29:$X29,AB$1)))=0,100,AB29) -> 100 | AI29: =IF(IF(ISERROR(SMALL($C29:$X29,AC$1)),0,IF($Y29=0,0,SMALL($C29:$X29,AC$1)))=0,100,AC29) -> 100 | AJ29: =IF(IF(ISERROR(SMALL($C29:$X29,AD$1)),0,IF($Y29=0,0,SMALL($C29:$X29,AD$1)))=0,100,AD29) -> 100 | AK29: =SUM(AF29:AJ29) -> 500
A30: 29 | Y30: =SUM(C30:X30) -> 0 | Z30: =IF(ISERROR(SMALL($C30:$X30,Z$1)),0,IF($Y30=0,0,SMALL($C30:$X30,Z$1))) -> 0 | AA30: =IF(ISERROR(SMALL($C30:$X30,AA$1)),0,IF($Y30=0,0,SMALL($C30:$X30,AA$1))) -> 0 | AB30: =IF(ISERROR(SMALL($C30:$X30,AB$1)),0,IF($Y30=0,0,SMALL($C30:$X30,AB$1))) -> 0 | AC30: =IF(ISERROR(SMALL($C30:$X30,AC$1)),0,IF($Y30=0,0,SMALL($C30:$X30,AC$1))) -> 0 | AD30: =IF(ISERROR(SMALL($C30:$X30,AD$1)),0,IF($Y30=0,0,SMALL($C30:$X30,AD$1))) -> 0 | AE30: =SUM(Z30:AD30) -> 0 | AF30: =IF(IF(ISERROR(SMALL($C30:$X30,Z$1)),0,IF($Y30=0,0,SMALL($C30:$X30,Z$1)))=0,100,Z30) -> 100 | AG30: =IF(IF(ISERROR(SMALL($C30:$X30,AA$1)),0,IF($Y30=0,0,SMALL($C30:$X30,AA$1)))=0,100,AA30) -> 100 | AH30: =IF(IF(ISERROR(SMALL($C30:$X30,AB$1)),0,IF($Y30=0,0,SMALL($C30:$X30,AB$1)))=0,100,AB30) -> 100 | AI30: =IF(IF(ISERROR(SMALL($C30:$X30,AC$1)),0,IF($Y30=0,0,SMALL($C30:$X30,AC$1)))=0,100,AC30) -> 100 | AJ30: =IF(IF(ISERROR(SMALL($C30:$X30,AD$1)),0,IF($Y30=0,0,SMALL($C30:$X30,AD$1)))=0,100,AD30) -> 100 | AK30: =SUM(AF30:AJ30) -> 500
A31: 30 | Y31: =SUM(C31:X31) -> 0 | Z31: =IF(ISERROR(SMALL($C31:$X31,Z$1)),0,IF($Y31=0,0,SMALL($C31:$X31,Z$1))) -> 0 | AA31: =IF(ISERROR(SMALL($C31:$X31,AA$1)),0,IF($Y31=0,0,SMALL($C31:$X31,AA$1))) -> 0 | AB31: =IF(ISERROR(SMALL($C31:$X31,AB$1)),0,IF($Y31=0,0,SMALL($C31:$X31,AB$1))) -> 0 | AC31: =IF(ISERROR(SMALL($C31:$X31,AC$1)),0,IF($Y31=0,0,SMALL($C31:$X31,AC$1))) -> 0 | AD31: =IF(ISERROR(SMALL($C31:$X31,AD$1)),0,IF($Y31=0,0,SMALL($C31:$X31,AD$1))) -> 0 | AE31: =SUM(Z31:AD31) -> 0 | AF31: =IF(IF(ISERROR(SMALL($C31:$X31,Z$1)),0,IF($Y31=0,0,SMALL($C31:$X31,Z$1)))=0,100,Z31) -> 100 | AG31: =IF(IF(ISERROR(SMALL($C31:$X31,AA$1)),0,IF($Y31=0,0,SMALL($C31:$X31,AA$1)))=0,100,AA31) -> 100 | AH31: =IF(IF(ISERROR(SMALL($C31:$X31,AB$1)),0,IF($Y31=0,0,SMALL($C31:$X31,AB$1)))=0,100,AB31) -> 100 | AI31: =IF(IF(ISERROR(SMALL($C31:$X31,AC$1)),0,IF($Y31=0,0,SMALL($C31:$X31,AC$1)))=0,100,AC31) -> 100 | AJ31: =IF(IF(ISERROR(SMALL($C31:$X31,AD$1)),0,IF($Y31=0,0,SMALL($C31:$X31,AD$1)))=0,100,AD31) -> 100 | AK31: =SUM(AF31:AJ31) -> 500
A32: 31 | Y32: =SUM(C32:X32) -> 0 | Z32: =IF(ISERROR(SMALL($C32:$X32,Z$1)),0,IF($Y32=0,0,SMALL($C32:$X32,Z$1))) -> 0 | AA32: =IF(ISERROR(SMALL($C32:$X32,AA$1)),0,IF($Y32=0,0,SMALL($C32:$X32,AA$1))) -> 0 | AB32: =IF(ISERROR(SMALL($C32:$X32,AB$1)),0,IF($Y32=0,0,SMALL($C32:$X32,AB$1))) -> 0 | AC32: =IF(ISERROR(SMALL($C32:$X32,AC$1)),0,IF($Y32=0,0,SMALL($C32:$X32,AC$1))) -> 0 | AD32: =IF(ISERROR(SMALL($C32:$X32,AD$1)),0,IF($Y32=0,0,SMALL($C32:$X32,AD$1))) -> 0 | AE32: =SUM(Z32:AD32) -> 0 | AF32: =IF(IF(ISERROR(SMALL($C32:$X32,Z$1)),0,IF($Y32=0,0,SMALL($C32:$X32,Z$1)))=0,100,Z32) -> 100 | AG32: =IF(IF(ISERROR(SMALL($C32:$X32,AA$1)),0,IF($Y32=0,0,SMALL($C32:$X32,AA$1)))=0,100,AA32) -> 100 | AH32: =IF(IF(ISERROR(SMALL($C32:$X32,AB$1)),0,IF($Y32=0,0,SMALL($C32:$X32,AB$1)))=0,100,AB32) -> 100 | AI32: =IF(IF(ISERROR(SMALL($C32:$X32,AC$1)),0,IF($Y32=0,0,SMALL($C32:$X32,AC$1)))=0,100,AC32) -> 100 | AJ32: =IF(IF(ISERROR(SMALL($C32:$X32,AD$1)),0,IF($Y32=0,0,SMALL($C32:$X32,AD$1)))=0,100,AD32) -> 100 | AK32: =SUM(AF32:AJ32) -> 500
A33: 32 | Y33: =SUM(C33:X33) -> 0 | Z33: =IF(ISERROR(SMALL($C33:$X33,Z$1)),0,IF($Y33=0,0,SMALL($C33:$X33,Z$1))) -> 0 | AA33: =IF(ISERROR(SMALL($C33:$X33,AA$1)),0,IF($Y33=0,0,SMALL($C33:$X33,AA$1))) -> 0 | AB33: =IF(ISERROR(SMALL($C33:$X33,AB$1)),0,IF($Y33=0,0,SMALL($C33:$X33,AB$1))) -> 0 | AC33: =IF(ISERROR(SMALL($C33:$X33,AC$1)),0,IF($Y33=0,0,SMALL($C33:$X33,AC$1))) -> 0 | AD33: =IF(ISERROR(SMALL($C33:$X33,AD$1)),0,IF($Y33=0,0,SMALL($C33:$X33,AD$1))) -> 0 | AE33: =SUM(Z33:AD33) -> 0 | AF33: =IF(IF(ISERROR(SMALL($C33:$X33,Z$1)),0,IF($Y33=0,0,SMALL($C33:$X33,Z$1)))=0,100,Z33) -> 100 | AG33: =IF(IF(ISERROR(SMALL($C33:$X33,AA$1)),0,IF($Y33=0,0,SMALL($C33:$X33,AA$1)))=0,100,AA33) -> 100 | AH33: =IF(IF(ISERROR(SMALL($C33:$X33,AB$1)),0,IF($Y33=0,0,SMALL($C33:$X33,AB$1)))=0,100,AB33) -> 100 | AI33: =IF(IF(ISERROR(SMALL($C33:$X33,AC$1)),0,IF($Y33=0,0,SMALL($C33:$X33,AC$1)))=0,100,AC33) -> 100 | AJ33: =IF(IF(ISERROR(SMALL($C33:$X33,AD$1)),0,IF($Y33=0,0,SMALL($C33:$X33,AD$1)))=0,100,AD33) -> 100 | AK33: =SUM(AF33:AJ33) -> 500
A34: 33 | Y34: =SUM(C34:X34) -> 0 | Z34: =IF(ISERROR(SMALL($C34:$X34,Z$1)),0,IF($Y34=0,0,SMALL($C34:$X34,Z$1))) -> 0 | AA34: =IF(ISERROR(SMALL($C34:$X34,AA$1)),0,IF($Y34=0,0,SMALL($C34:$X34,AA$1))) -> 0 | AB34: =IF(ISERROR(SMALL($C34:$X34,AB$1)),0,IF($Y34=0,0,SMALL($C34:$X34,AB$1))) -> 0 | AC34: =IF(ISERROR(SMALL($C34:$X34,AC$1)),0,IF($Y34=0,0,SMALL($C34:$X34,AC$1))) -> 0 | AD34: =IF(ISERROR(SMALL($C34:$X34,AD$1)),0,IF($Y34=0,0,SMALL($C34:$X34,AD$1))) -> 0 | AE34: =SUM(Z34:AD34) -> 0 | AF34: =IF(IF(ISERROR(SMALL($C34:$X34,Z$1)),0,IF($Y34=0,0,SMALL($C34:$X34,Z$1)))=0,100,Z34) -> 100 | AG34: =IF(IF(ISERROR(SMALL($C34:$X34,AA$1)),0,IF($Y34=0,0,SMALL($C34:$X34,AA$1)))=0,100,AA34) -> 100 | AH34: =IF(IF(ISERROR(SMALL($C34:$X34,AB$1)),0,IF($Y34=0,0,SMALL($C34:$X34,AB$1)))=0,100,AB34) -> 100 | AI34: =IF(IF(ISERROR(SMALL($C34:$X34,AC$1)),0,IF($Y34=0,0,SMALL($C34:$X34,AC$1)))=0,100,AC34) -> 100 | AJ34: =IF(IF(ISERROR(SMALL($C34:$X34,AD$1)),0,IF($Y34=0,0,SMALL($C34:$X34,AD$1)))=0,100,AD34) -> 100 | AK34: =SUM(AF34:AJ34) -> 500
A35: 34 | Y35: =SUM(C35:X35) -> 0 | Z35: =IF(ISERROR(SMALL($C35:$X35,Z$1)),0,IF($Y35=0,0,SMALL($C35:$X35,Z$1))) -> 0 | AA35: =IF(ISERROR(SMALL($C35:$X35,AA$1)),0,IF($Y35=0,0,SMALL($C35:$X35,AA$1))) -> 0 | AB35: =IF(ISERROR(SMALL($C35:$X35,AB$1)),0,IF($Y35=0,0,SMALL($C35:$X35,AB$1))) -> 0 | AC35: =IF(ISERROR(SMALL($C35:$X35,AC$1)),0,IF($Y35=0,0,SMALL($C35:$X35,AC$1))) -> 0 | AD35: =IF(ISERROR(SMALL($C35:$X35,AD$1)),0,IF($Y35=0,0,SMALL($C35:$X35,AD$1))) -> 0 | AE35: =SUM(Z35:AD35) -> 0 | AF35: =IF(IF(ISERROR(SMALL($C35:$X35,Z$1)),0,IF($Y35=0,0,SMALL($C35:$X35,Z$1)))=0,100,Z35) -> 100 | AG35: =IF(IF(ISERROR(SMALL($C35:$X35,AA$1)),0,IF($Y35=0,0,SMALL($C35:$X35,AA$1)))=0,100,AA35) -> 100 | AH35: =IF(IF(ISERROR(SMALL($C35:$X35,AB$1)),0,IF($Y35=0,0,SMALL($C35:$X35,AB$1)))=0,100,AB35) -> 100 | AI35: =IF(IF(ISERROR(SMALL($C35:$X35,AC$1)),0,IF($Y35=0,0,SMALL($C35:$X35,AC$1)))=0,100,AC35) -> 100 | AJ35: =IF(IF(ISERROR(SMALL($C35:$X35,AD$1)),0,IF($Y35=0,0,SMALL($C35:$X35,AD$1)))=0,100,AD35) -> 100 | AK35: =SUM(AF35:AJ35) -> 500
A36: 35 | Y36: =SUM(C36:X36) -> 0 | Z36: =IF(ISERROR(SMALL($C36:$X36,Z$1)),0,IF($Y36=0,0,SMALL($C36:$X36,Z$1))) -> 0 | AA36: =IF(ISERROR(SMALL($C36:$X36,AA$1)),0,IF($Y36=0,0,SMALL($C36:$X36,AA$1))) -> 0 | AB36: =IF(ISERROR(SMALL($C36:$X36,AB$1)),0,IF($Y36=0,0,SMALL($C36:$X36,AB$1))) -> 0 | AC36: =IF(ISERROR(SMALL($C36:$X36,AC$1)),0,IF($Y36=0,0,SMALL($C36:$X36,AC$1))) -> 0 | AD36: =IF(ISERROR(SMALL($C36:$X36,AD$1)),0,IF($Y36=0,0,SMALL($C36:$X36,AD$1))) -> 0 | AE36: =SUM(Z36:AD36) -> 0 | AF36: =IF(IF(ISERROR(SMALL($C36:$X36,Z$1)),0,IF($Y36=0,0,SMALL($C36:$X36,Z$1)))=0,100,Z36) -> 100 | AG36: =IF(IF(ISERROR(SMALL($C36:$X36,AA$1)),0,IF($Y36=0,0,SMALL($C36:$X36,AA$1)))=0,100,AA36) -> 100 | AH36: =IF(IF(ISERROR(SMALL($C36:$X36,AB$1)),0,IF($Y36=0,0,SMALL($C36:$X36,AB$1)))=0,100,AB36) -> 100 | AI36: =IF(IF(ISERROR(SMALL($C36:$X36,AC$1)),0,IF($Y36=0,0,SMALL($C36:$X36,AC$1)))=0,100,AC36) -> 100 | AJ36: =IF(IF(ISERROR(SMALL($C36:$X36,AD$1)),0,IF($Y36=0,0,SMALL($C36:$X36,AD$1)))=0,100,AD36) -> 100 | AK36: =SUM(AF36:AJ36) -> 500
A37: 36 | Y37: =SUM(C37:X37) -> 0 | Z37: =IF(ISERROR(SMALL($C37:$X37,Z$1)),0,IF($Y37=0,0,SMALL($C37:$X37,Z$1))) -> 0 | AA37: =IF(ISERROR(SMALL($C37:$X37,AA$1)),0,IF($Y37=0,0,SMALL($C37:$X37,AA$1))) -> 0 | AB37: =IF(ISERROR(SMALL($C37:$X37,AB$1)),0,IF($Y37=0,0,SMALL($C37:$X37,AB$1))) -> 0 | AC37: =IF(ISERROR(SMALL($C37:$X37,AC$1)),0,IF($Y37=0,0,SMALL($C37:$X37,AC$1))) -> 0 | AD37: =IF(ISERROR(SMALL($C37:$X37,AD$1)),0,IF($Y37=0,0,SMALL($C37:$X37,AD$1))) -> 0 | AE37: =SUM(Z37:AD37) -> 0 | AF37: =IF(IF(ISERROR(SMALL($C37:$X37,Z$1)),0,IF($Y37=0,0,SMALL($C37:$X37,Z$1)))=0,100,Z37) -> 100 | AG37: =IF(IF(ISERROR(SMALL($C37:$X37,AA$1)),0,IF($Y37=0,0,SMALL($C37:$X37,AA$1)))=0,100,AA37) -> 100 | AH37: =IF(IF(ISERROR(SMALL($C37:$X37,AB$1)),0,IF($Y37=0,0,SMALL($C37:$X37,AB$1)))=0,100,AB37) -> 100 | AI37: =IF(IF(ISERROR(SMALL($C37:$X37,AC$1)),0,IF($Y37=0,0,SMALL($C37:$X37,AC$1)))=0,100,AC37) -> 100 | AJ37: =IF(IF(ISERROR(SMALL($C37:$X37,AD$1)),0,IF($Y37=0,0,SMALL($C37:$X37,AD$1)))=0,100,AD37) -> 100 | AK37: =SUM(AF37:AJ37) -> 500
A38: 37 | Y38: =SUM(C38:X38) -> 0 | Z38: =IF(ISERROR(SMALL($C38:$X38,Z$1)),0,IF($Y38=0,0,SMALL($C38:$X38,Z$1))) -> 0 | AA38: =IF(ISERROR(SMALL($C38:$X38,AA$1)),0,IF($Y38=0,0,SMALL($C38:$X38,AA$1))) -> 0 | AB38: =IF(ISERROR(SMALL($C38:$X38,AB$1)),0,IF($Y38=0,0,SMALL($C38:$X38,AB$1))) -> 0 | AC38: =IF(ISERROR(SMALL($C38:$X38,AC$1)),0,IF($Y38=0,0,SMALL($C38:$X38,AC$1))) -> 0 | AD38: =IF(ISERROR(SMALL($C38:$X38,AD$1)),0,IF($Y38=0,0,SMALL($C38:$X38,AD$1))) -> 0 | AE38: =SUM(Z38:AD38) -> 0 | AF38: =IF(IF(ISERROR(SMALL($C38:$X38,Z$1)),0,IF($Y38=0,0,SMALL($C38:$X38,Z$1)))=0,100,Z38) -> 100 | AG38: =IF(IF(ISERROR(SMALL($C38:$X38,AA$1)),0,IF($Y38=0,0,SMALL($C38:$X38,AA$1)))=0,100,AA38) -> 100 | AH38: =IF(IF(ISERROR(SMALL($C38:$X38,AB$1)),0,IF($Y38=0,0,SMALL($C38:$X38,AB$1)))=0,100,AB38) -> 100 | AI38: =IF(IF(ISERROR(SMALL($C38:$X38,AC$1)),0,IF($Y38=0,0,SMALL($C38:$X38,AC$1)))=0,100,AC38) -> 100 | AJ38: =IF(IF(ISERROR(SMALL($C38:$X38,AD$1)),0,IF($Y38=0,0,SMALL($C38:$X38,AD$1)))=0,100,AD38) -> 100 | AK38: =SUM(AF38:AJ38) -> 500
A39: 38 | Y39: =SUM(C39:X39) -> 0 | Z39: =IF(ISERROR(SMALL($C39:$X39,Z$1)),0,IF($Y39=0,0,SMALL($C39:$X39,Z$1))) -> 0 | AA39: =IF(ISERROR(SMALL($C39:$X39,AA$1)),0,IF($Y39=0,0,SMALL($C39:$X39,AA$1))) -> 0 | AB39: =IF(ISERROR(SMALL($C39:$X39,AB$1)),0,IF($Y39=0,0,SMALL($C39:$X39,AB$1))) -> 0 | AC39: =IF(ISERROR(SMALL($C39:$X39,AC$1)),0,IF($Y39=0,0,SMALL($C39:$X39,AC$1))) -> 0 | AD39: =IF(ISERROR(SMALL($C39:$X39,AD$1)),0,IF($Y39=0,0,SMALL($C39:$X39,AD$1))) -> 0 | AE39: =SUM(Z39:AD39) -> 0 | AF39: =IF(IF(ISERROR(SMALL($C39:$X39,Z$1)),0,IF($Y39=0,0,SMALL($C39:$X39,Z$1)))=0,100,Z39) -> 100 | AG39: =IF(IF(ISERROR(SMALL($C39:$X39,AA$1)),0,IF($Y39=0,0,SMALL($C39:$X39,AA$1)))=0,100,AA39) -> 100 | AH39: =IF(IF(ISERROR(SMALL($C39:$X39,AB$1)),0,IF($Y39=0,0,SMALL($C39:$X39,AB$1)))=0,100,AB39) -> 100 | AI39: =IF(IF(ISERROR(SMALL($C39:$X39,AC$1)),0,IF($Y39=0,0,SMALL($C39:$X39,AC$1)))=0,100,AC39) -> 100 | AJ39: =IF(IF(ISERROR(SMALL($C39:$X39,AD$1)),0,IF($Y39=0,0,SMALL($C39:$X39,AD$1)))=0,100,AD39) -> 100 | AK39: =SUM(AF39:AJ39) -> 500
A40: 39 | Y40: =SUM(C40:X40) -> 0 | Z40: =IF(ISERROR(SMALL($C40:$X40,Z$1)),0,IF($Y40=0,0,SMALL($C40:$X40,Z$1))) -> 0 | AA40: =IF(ISERROR(SMALL($C40:$X40,AA$1)),0,IF($Y40=0,0,SMALL($C40:$X40,AA$1))) -> 0 | AB40: =IF(ISERROR(SMALL($C40:$X40,AB$1)),0,IF($Y40=0,0,SMALL($C40:$X40,AB$1))) -> 0 | AC40: =IF(ISERROR(SMALL($C40:$X40,AC$1)),0,IF($Y40=0,0,SMALL($C40:$X40,AC$1))) -> 0 | AD40: =IF(ISERROR(SMALL($C40:$X40,AD$1)),0,IF($Y40=0,0,SMALL($C40:$X40,AD$1))) -> 0 | AE40: =SUM(Z40:AD40) -> 0 | AF40: =IF(IF(ISERROR(SMALL($C40:$X40,Z$1)),0,IF($Y40=0,0,SMALL($C40:$X40,Z$1)))=0,100,Z40) -> 100 | AG40: =IF(IF(ISERROR(SMALL($C40:$X40,AA$1)),0,IF($Y40=0,0,SMALL($C40:$X40,AA$1)))=0,100,AA40) -> 100 | AH40: =IF(IF(ISERROR(SMALL($C40:$X40,AB$1)),0,IF($Y40=0,0,SMALL($C40:$X40,AB$1)))=0,100,AB40) -> 100 | AI40: =IF(IF(ISERROR(SMALL($C40:$X40,AC$1)),0,IF($Y40=0,0,SMALL($C40:$X40,AC$1)))=0,100,AC40) -> 100 | AJ40: =IF(IF(ISERROR(SMALL($C40:$X40,AD$1)),0,IF($Y40=0,0,SMALL($C40:$X40,AD$1)))=0,100,AD40) -> 100 | AK40: =SUM(AF40:AJ40) -> 500
A41: 40 | Y41: =SUM(C41:X41) -> 0 | Z41: =IF(ISERROR(SMALL($C41:$X41,Z$1)),0,IF($Y41=0,0,SMALL($C41:$X41,Z$1))) -> 0 | AA41: =IF(ISERROR(SMALL($C41:$X41,AA$1)),0,IF($Y41=0,0,SMALL($C41:$X41,AA$1))) -> 0 | AB41: =IF(ISERROR(SMALL($C41:$X41,AB$1)),0,IF($Y41=0,0,SMALL($C41:$X41,AB$1))) -> 0 | AC41: =IF(ISERROR(SMALL($C41:$X41,AC$1)),0,IF($Y41=0,0,SMALL($C41:$X41,AC$1))) -> 0 | AD41: =IF(ISERROR(SMALL($C41:$X41,AD$1)),0,IF($Y41=0,0,SMALL($C41:$X41,AD$1))) -> 0 | AE41: =SUM(Z41:AD41) -> 0 | AF41: =IF(IF(ISERROR(SMALL($C41:$X41,Z$1)),0,IF($Y41=0,0,SMALL($C41:$X41,Z$1)))=0,100,Z41) -> 100 | AG41: =IF(IF(ISERROR(SMALL($C41:$X41,AA$1)),0,IF($Y41=0,0,SMALL($C41:$X41,AA$1)))=0,100,AA41) -> 100 | AH41: =IF(IF(ISERROR(SMALL($C41:$X41,AB$1)),0,IF($Y41=0,0,SMALL($C41:$X41,AB$1)))=0,100,AB41) -> 100 | AI41: =IF(IF(ISERROR(SMALL($C41:$X41,AC$1)),0,IF($Y41=0,0,SMALL($C41:$X41,AC$1)))=0,100,AC41) -> 100 | AJ41: =IF(IF(ISERROR(SMALL($C41:$X41,AD$1)),0,IF($Y41=0,0,SMALL($C41:$X41,AD$1)))=0,100,AD41) -> 100 | AK41: =SUM(AF41:AJ41) -> 500
A42: 41 | Y42: =SUM(C42:X42) -> 0 | Z42: =IF(ISERROR(SMALL($C42:$X42,Z$1)),0,IF($Y42=0,0,SMALL($C42:$X42,Z$1))) -> 0 | AA42: =IF(ISERROR(SMALL($C42:$X42,AA$1)),0,IF($Y42=0,0,SMALL($C42:$X42,AA$1))) -> 0 | AB42: =IF(ISERROR(SMALL($C42:$X42,AB$1)),0,IF($Y42=0,0,SMALL($C42:$X42,AB$1))) -> 0 | AC42: =IF(ISERROR(SMALL($C42:$X42,AC$1)),0,IF($Y42=0,0,SMALL($C42:$X42,AC$1))) -> 0 | AD42: =IF(ISERROR(SMALL($C42:$X42,AD$1)),0,IF($Y42=0,0,SMALL($C42:$X42,AD$1))) -> 0 | AE42: =SUM(Z42:AD42) -> 0 | AF42: =IF(IF(ISERROR(SMALL($C42:$X42,Z$1)),0,IF($Y42=0,0,SMALL($C42:$X42,Z$1)))=0,100,Z42) -> 100 | AG42: =IF(IF(ISERROR(SMALL($C42:$X42,AA$1)),0,IF($Y42=0,0,SMALL($C42:$X42,AA$1)))=0,100,AA42) -> 100 | AH42: =IF(IF(ISERROR(SMALL($C42:$X42,AB$1)),0,IF($Y42=0,0,SMALL($C42:$X42,AB$1)))=0,100,AB42) -> 100 | AI42: =IF(IF(ISERROR(SMALL($C42:$X42,AC$1)),0,IF($Y42=0,0,SMALL($C42:$X42,AC$1)))=0,100,AC42) -> 100 | AJ42: =IF(IF(ISERROR(SMALL($C42:$X42,AD$1)),0,IF($Y42=0,0,SMALL($C42:$X42,AD$1)))=0,100,AD42) -> 100 | AK42: =SUM(AF42:AJ42) -> 500
A43: 42 | Y43: =SUM(C43:X43) -> 0 | Z43: =IF(ISERROR(SMALL($C43:$X43,Z$1)),0,IF($Y43=0,0,SMALL($C43:$X43,Z$1))) -> 0 | AA43: =IF(ISERROR(SMALL($C43:$X43,AA$1)),0,IF($Y43=0,0,SMALL($C43:$X43,AA$1))) -> 0 | AB43: =IF(ISERROR(SMALL($C43:$X43,AB$1)),0,IF($Y43=0,0,SMALL($C43:$X43,AB$1))) -> 0 | AC43: =IF(ISERROR(SMALL($C43:$X43,AC$1)),0,IF($Y43=0,0,SMALL($C43:$X43,AC$1))) -> 0 | AD43: =IF(ISERROR(SMALL($C43:$X43,AD$1)),0,IF($Y43=0,0,SMALL($C43:$X43,AD$1))) -> 0 | AE43: =SUM(Z43:AD43) -> 0 | AF43: =IF(IF(ISERROR(SMALL($C43:$X43,Z$1)),0,IF($Y43=0,0,SMALL($C43:$X43,Z$1)))=0,100,Z43) -> 100 | AG43: =IF(IF(ISERROR(SMALL($C43:$X43,AA$1)),0,IF($Y43=0,0,SMALL($C43:$X43,AA$1)))=0,100,AA43) -> 100 | AH43: =IF(IF(ISERROR(SMALL($C43:$X43,AB$1)),0,IF($Y43=0,0,SMALL($C43:$X43,AB$1)))=0,100,AB43) -> 100 | AI43: =IF(IF(ISERROR(SMALL($C43:$X43,AC$1)),0,IF($Y43=0,0,SMALL($C43:$X43,AC$1)))=0,100,AC43) -> 100 | AJ43: =IF(IF(ISERROR(SMALL($C43:$X43,AD$1)),0,IF($Y43=0,0,SMALL($C43:$X43,AD$1)))=0,100,AD43) -> 100 | AK43: =SUM(AF43:AJ43) -> 500
A44: 43 | Y44: =SUM(C44:X44) -> 0 | Z44: =IF(ISERROR(SMALL($C44:$X44,Z$1)),0,IF($Y44=0,0,SMALL($C44:$X44,Z$1))) -> 0 | AA44: =IF(ISERROR(SMALL($C44:$X44,AA$1)),0,IF($Y44=0,0,SMALL($C44:$X44,AA$1))) -> 0 | AB44: =IF(ISERROR(SMALL($C44:$X44,AB$1)),0,IF($Y44=0,0,SMALL($C44:$X44,AB$1))) -> 0 | AC44: =IF(ISERROR(SMALL($C44:$X44,AC$1)),0,IF($Y44=0,0,SMALL($C44:$X44,AC$1))) -> 0 | AD44: =IF(ISERROR(SMALL($C44:$X44,AD$1)),0,IF($Y44=0,0,SMALL($C44:$X44,AD$1))) -> 0 | AE44: =SUM(Z44:AD44) -> 0 | AF44: =IF(IF(ISERROR(SMALL($C44:$X44,Z$1)),0,IF($Y44=0,0,SMALL($C44:$X44,Z$1)))=0,100,Z44) -> 100 | AG44: =IF(IF(ISERROR(SMALL($C44:$X44,AA$1)),0,IF($Y44=0,0,SMALL($C44:$X44,AA$1)))=0,100,AA44) -> 100 | AH44: =IF(IF(ISERROR(SMALL($C44:$X44,AB$1)),0,IF($Y44=0,0,SMALL($C44:$X44,AB$1)))=0,100,AB44) -> 100 | AI44: =IF(IF(ISERROR(SMALL($C44:$X44,AC$1)),0,IF($Y44=0,0,SMALL($C44:$X44,AC$1)))=0,100,AC44) -> 100 | AJ44: =IF(IF(ISERROR(SMALL($C44:$X44,AD$1)),0,IF($Y44=0,0,SMALL($C44:$X44,AD$1)))=0,100,AD44) -> 100 | AK44: =SUM(AF44:AJ44) -> 500
A45: 44 | Y45: =SUM(C45:X45) -> 0 | Z45: =IF(ISERROR(SMALL($C45:$X45,Z$1)),0,IF($Y45=0,0,SMALL($C45:$X45,Z$1))) -> 0 | AA45: =IF(ISERROR(SMALL($C45:$X45,AA$1)),0,IF($Y45=0,0,SMALL($C45:$X45,AA$1))) -> 0 | AB45: =IF(ISERROR(SMALL($C45:$X45,AB$1)),0,IF($Y45=0,0,SMALL($C45:$X45,AB$1))) -> 0 | AC45: =IF(ISERROR(SMALL($C45:$X45,AC$1)),0,IF($Y45=0,0,SMALL($C45:$X45,AC$1))) -> 0 | AD45: =IF(ISERROR(SMALL($C45:$X45,AD$1)),0,IF($Y45=0,0,SMALL($C45:$X45,AD$1))) -> 0 | AE45: =SUM(Z45:AD45) -> 0 | AF45: =IF(IF(ISERROR(SMALL($C45:$X45,Z$1)),0,IF($Y45=0,0,SMALL($C45:$X45,Z$1)))=0,100,Z45) -> 100 | AG45: =IF(IF(ISERROR(SMALL($C45:$X45,AA$1)),0,IF($Y45=0,0,SMALL($C45:$X45,AA$1)))=0,100,AA45) -> 100 | AH45: =IF(IF(ISERROR(SMALL($C45:$X45,AB$1)),0,IF($Y45=0,0,SMALL($C45:$X45,AB$1)))=0,100,AB45) -> 100 | AI45: =IF(IF(ISERROR(SMALL($C45:$X45,AC$1)),0,IF($Y45=0,0,SMALL($C45:$X45,AC$1)))=0,100,AC45) -> 100 | AJ45: =IF(IF(ISERROR(SMALL($C45:$X45,AD$1)),0,IF($Y45=0,0,SMALL($C45:$X45,AD$1)))=0,100,AD45) -> 100 | AK45: =SUM(AF45:AJ45) -> 500
A46: 45 | Y46: =SUM(C46:X46) -> 0 | Z46: =IF(ISERROR(SMALL($C46:$X46,Z$1)),0,IF($Y46=0,0,SMALL($C46:$X46,Z$1))) -> 0 | AA46: =IF(ISERROR(SMALL($C46:$X46,AA$1)),0,IF($Y46=0,0,SMALL($C46:$X46,AA$1))) -> 0 | AB46: =IF(ISERROR(SMALL($C46:$X46,AB$1)),0,IF($Y46=0,0,SMALL($C46:$X46,AB$1))) -> 0 | AC46: =IF(ISERROR(SMALL($C46:$X46,AC$1)),0,IF($Y46=0,0,SMALL($C46:$X46,AC$1))) -> 0 | AD46: =IF(ISERROR(SMALL($C46:$X46,AD$1)),0,IF($Y46=0,0,SMALL($C46:$X46,AD$1))) -> 0 | AE46: =SUM(Z46:AD46) -> 0 | AF46: =IF(IF(ISERROR(SMALL($C46:$X46,Z$1)),0,IF($Y46=0,0,SMALL($C46:$X46,Z$1)))=0,100,Z46) -> 100 | AG46: =IF(IF(ISERROR(SMALL($C46:$X46,AA$1)),0,IF($Y46=0,0,SMALL($C46:$X46,AA$1)))=0,100,AA46) -> 100 | AH46: =IF(IF(ISERROR(SMALL($C46:$X46,AB$1)),0,IF($Y46=0,0,SMALL($C46:$X46,AB$1)))=0,100,AB46) -> 100 | AI46: =IF(IF(ISERROR(SMALL($C46:$X46,AC$1)),0,IF($Y46=0,0,SMALL($C46:$X46,AC$1)))=0,100,AC46) -> 100 | AJ46: =IF(IF(ISERROR(SMALL($C46:$X46,AD$1)),0,IF($Y46=0,0,SMALL($C46:$X46,AD$1)))=0,100,AD46) -> 100 | AK46: =SUM(AF46:AJ46) -> 500
A47: 46 | Y47: =SUM(C47:X47) -> 0 | Z47: =IF(ISERROR(SMALL($C47:$X47,Z$1)),0,IF($Y47=0,0,SMALL($C47:$X47,Z$1))) -> 0 | AA47: =IF(ISERROR(SMALL($C47:$X47,AA$1)),0,IF($Y47=0,0,SMALL($C47:$X47,AA$1))) -> 0 | AB47: =IF(ISERROR(SMALL($C47:$X47,AB$1)),0,IF($Y47=0,0,SMALL($C47:$X47,AB$1))) -> 0 | AC47: =IF(ISERROR(SMALL($C47:$X47,AC$1)),0,IF($Y47=0,0,SMALL($C47:$X47,AC$1))) -> 0 | AD47: =IF(ISERROR(SMALL($C47:$X47,AD$1)),0,IF($Y47=0,0,SMALL($C47:$X47,AD$1))) -> 0 | AE47: =SUM(Z47:AD47) -> 0 | AF47: =IF(IF(ISERROR(SMALL($C47:$X47,Z$1)),0,IF($Y47=0,0,SMALL($C47:$X47,Z$1)))=0,100,Z47) -> 100 | AG47: =IF(IF(ISERROR(SMALL($C47:$X47,AA$1)),0,IF($Y47=0,0,SMALL($C47:$X47,AA$1)))=0,100,AA47) -> 100 | AH47: =IF(IF(ISERROR(SMALL($C47:$X47,AB$1)),0,IF($Y47=0,0,SMALL($C47:$X47,AB$1)))=0,100,AB47) -> 100 | AI47: =IF(IF(ISERROR(SMALL($C47:$X47,AC$1)),0,IF($Y47=0,0,SMALL($C47:$X47,AC$1)))=0,100,AC47) -> 100 | AJ47: =IF(IF(ISERROR(SMALL($C47:$X47,AD$1)),0,IF($Y47=0,0,SMALL($C47:$X47,AD$1)))=0,100,AD47) -> 100 | AK47: =SUM(AF47:AJ47) -> 500
A48: 47 | Y48: =SUM(C48:X48) -> 0 | Z48: =IF(ISERROR(SMALL($C48:$X48,Z$1)),0,IF($Y48=0,0,SMALL($C48:$X48,Z$1))) -> 0 | AA48: =IF(ISERROR(SMALL($C48:$X48,AA$1)),0,IF($Y48=0,0,SMALL($C48:$X48,AA$1))) -> 0 | AB48: =IF(ISERROR(SMALL($C48:$X48,AB$1)),0,IF($Y48=0,0,SMALL($C48:$X48,AB$1))) -> 0 | AC48: =IF(ISERROR(SMALL($C48:$X48,AC$1)),0,IF($Y48=0,0,SMALL($C48:$X48,AC$1))) -> 0 | AD48: =IF(ISERROR(SMALL($C48:$X48,AD$1)),0,IF($Y48=0,0,SMALL($C48:$X48,AD$1))) -> 0 | AE48: =SUM(Z48:AD48) -> 0 | AF48: =IF(IF(ISERROR(SMALL($C48:$X48,Z$1)),0,IF($Y48=0,0,SMALL($C48:$X48,Z$1)))=0,100,Z48) -> 100 | AG48: =IF(IF(ISERROR(SMALL($C48:$X48,AA$1)),0,IF($Y48=0,0,SMALL($C48:$X48,AA$1)))=0,100,AA48) -> 100 | AH48: =IF(IF(ISERROR(SMALL($C48:$X48,AB$1)),0,IF($Y48=0,0,SMALL($C48:$X48,AB$1)))=0,100,AB48) -> 100 | AI48: =IF(IF(ISERROR(SMALL($C48:$X48,AC$1)),0,IF($Y48=0,0,SMALL($C48:$X48,AC$1)))=0,100,AC48) -> 100 | AJ48: =IF(IF(ISERROR(SMALL($C48:$X48,AD$1)),0,IF($Y48=0,0,SMALL($C48:$X48,AD$1)))=0,100,AD48) -> 100 | AK48: =SUM(AF48:AJ48) -> 500
A49: 48 | Y49: =SUM(C49:X49) -> 0 | Z49: =IF(ISERROR(SMALL($C49:$X49,Z$1)),0,IF($Y49=0,0,SMALL($C49:$X49,Z$1))) -> 0 | AA49: =IF(ISERROR(SMALL($C49:$X49,AA$1)),0,IF($Y49=0,0,SMALL($C49:$X49,AA$1))) -> 0 | AB49: =IF(ISERROR(SMALL($C49:$X49,AB$1)),0,IF($Y49=0,0,SMALL($C49:$X49,AB$1))) -> 0 | AC49: =IF(ISERROR(SMALL($C49:$X49,AC$1)),0,IF($Y49=0,0,SMALL($C49:$X49,AC$1))) -> 0 | AD49: =IF(ISERROR(SMALL($C49:$X49,AD$1)),0,IF($Y49=0,0,SMALL($C49:$X49,AD$1))) -> 0 | AE49: =SUM(Z49:AD49) -> 0 | AF49: =IF(IF(ISERROR(SMALL($C49:$X49,Z$1)),0,IF($Y49=0,0,SMALL($C49:$X49,Z$1)))=0,100,Z49) -> 100 | AG49: =IF(IF(ISERROR(SMALL($C49:$X49,AA$1)),0,IF($Y49=0,0,SMALL($C49:$X49,AA$1)))=0,100,AA49) -> 100 | AH49: =IF(IF(ISERROR(SMALL($C49:$X49,AB$1)),0,IF($Y49=0,0,SMALL($C49:$X49,AB$1)))=0,100,AB49) -> 100 | AI49: =IF(IF(ISERROR(SMALL($C49:$X49,AC$1)),0,IF($Y49=0,0,SMALL($C49:$X49,AC$1)))=0,100,AC49) -> 100 | AJ49: =IF(IF(ISERROR(SMALL($C49:$X49,AD$1)),0,IF($Y49=0,0,SMALL($C49:$X49,AD$1)))=0,100,AD49) -> 100 | AK49: =SUM(AF49:AJ49) -> 500
A50: 49 | Y50: =SUM(C50:X50) -> 0 | Z50: =IF(ISERROR(SMALL($C50:$X50,Z$1)),0,IF($Y50=0,0,SMALL($C50:$X50,Z$1))) -> 0 | AA50: =IF(ISERROR(SMALL($C50:$X50,AA$1)),0,IF($Y50=0,0,SMALL($C50:$X50,AA$1))) -> 0 | AB50: =IF(ISERROR(SMALL($C50:$X50,AB$1)),0,IF($Y50=0,0,SMALL($C50:$X50,AB$1))) -> 0 | AC50: =IF(ISERROR(SMALL($C50:$X50,AC$1)),0,IF($Y50=0,0,SMALL($C50:$X50,AC$1))) -> 0 | AD50: =IF(ISERROR(SMALL($C50:$X50,AD$1)),0,IF($Y50=0,0,SMALL($C50:$X50,AD$1))) -> 0 | AE50: =SUM(Z50:AD50) -> 0 | AF50: =IF(IF(ISERROR(SMALL($C50:$X50,Z$1)),0,IF($Y50=0,0,SMALL($C50:$X50,Z$1)))=0,100,Z50) -> 100 | AG50: =IF(IF(ISERROR(SMALL($C50:$X50,AA$1)),0,IF($Y50=0,0,SMALL($C50:$X50,AA$1)))=0,100,AA50) -> 100 | AH50: =IF(IF(ISERROR(SMALL($C50:$X50,AB$1)),0,IF($Y50=0,0,SMALL($C50:$X50,AB$1)))=0,100,AB50) -> 100 | AI50: =IF(IF(ISERROR(SMALL($C50:$X50,AC$1)),0,IF($Y50=0,0,SMALL($C50:$X50,AC$1)))=0,100,AC50) -> 100 | AJ50: =IF(IF(ISERROR(SMALL($C50:$X50,AD$1)),0,IF($Y50=0,0,SMALL($C50:$X50,AD$1)))=0,100,AD50) -> 100 | AK50: =SUM(AF50:AJ50) -> 500
A51: 50 | Y51: =SUM(C51:X51) -> 0 | Z51: =IF(ISERROR(SMALL($C51:$X51,Z$1)),0,IF($Y51=0,0,SMALL($C51:$X51,Z$1))) -> 0 | AA51: =IF(ISERROR(SMALL($C51:$X51,AA$1)),0,IF($Y51=0,0,SMALL($C51:$X51,AA$1))) -> 0 | AB51: =IF(ISERROR(SMALL($C51:$X51,AB$1)),0,IF($Y51=0,0,SMALL($C51:$X51,AB$1))) -> 0 | AC51: =IF(ISERROR(SMALL($C51:$X51,AC$1)),0,IF($Y51=0,0,SMALL($C51:$X51,AC$1))) -> 0 | AD51: =IF(ISERROR(SMALL($C51:$X51,AD$1)),0,IF($Y51=0,0,SMALL($C51:$X51,AD$1))) -> 0 | AE51: =SUM(Z51:AD51) -> 0 | AF51: =IF(IF(ISERROR(SMALL($C51:$X51,Z$1)),0,IF($Y51=0,0,SMALL($C51:$X51,Z$1)))=0,100,Z51) -> 100 | AG51: =IF(IF(ISERROR(SMALL($C51:$X51,AA$1)),0,IF($Y51=0,0,SMALL($C51:$X51,AA$1)))=0,100,AA51) -> 100 | AH51: =IF(IF(ISERROR(SMALL($C51:$X51,AB$1)),0,IF($Y51=0,0,SMALL($C51:$X51,AB$1)))=0,100,AB51) -> 100 | AI51: =IF(IF(ISERROR(SMALL($C51:$X51,AC$1)),0,IF($Y51=0,0,SMALL($C51:$X51,AC$1)))=0,100,AC51) -> 100 | AJ51: =IF(IF(ISERROR(SMALL($C51:$X51,AD$1)),0,IF($Y51=0,0,SMALL($C51:$X51,AD$1)))=0,100,AD51) -> 100 | AK51: =SUM(AF51:AJ51) -> 500
A52: 51 | Y52: =SUM(C52:X52) -> 0 | Z52: =IF(ISERROR(SMALL($C52:$X52,Z$1)),0,IF($Y52=0,0,SMALL($C52:$X52,Z$1))) -> 0 | AA52: =IF(ISERROR(SMALL($C52:$X52,AA$1)),0,IF($Y52=0,0,SMALL($C52:$X52,AA$1))) -> 0 | AB52: =IF(ISERROR(SMALL($C52:$X52,AB$1)),0,IF($Y52=0,0,SMALL($C52:$X52,AB$1))) -> 0 | AC52: =IF(ISERROR(SMALL($C52:$X52,AC$1)),0,IF($Y52=0,0,SMALL($C52:$X52,AC$1))) -> 0 | AD52: =IF(ISERROR(SMALL($C52:$X52,AD$1)),0,IF($Y52=0,0,SMALL($C52:$X52,AD$1))) -> 0 | AE52: =SUM(Z52:AD52) -> 0 | AF52: =IF(IF(ISERROR(SMALL($C52:$X52,Z$1)),0,IF($Y52=0,0,SMALL($C52:$X52,Z$1)))=0,100,Z52) -> 100 | AG52: =IF(IF(ISERROR(SMALL($C52:$X52,AA$1)),0,IF($Y52=0,0,SMALL($C52:$X52,AA$1)))=0,100,AA52) -> 100 | AH52: =IF(IF(ISERROR(SMALL($C52:$X52,AB$1)),0,IF($Y52=0,0,SMALL($C52:$X52,AB$1)))=0,100,AB52) -> 100 | AI52: =IF(IF(ISERROR(SMALL($C52:$X52,AC$1)),0,IF($Y52=0,0,SMALL($C52:$X52,AC$1)))=0,100,AC52) -> 100 | AJ52: =IF(IF(ISERROR(SMALL($C52:$X52,AD$1)),0,IF($Y52=0,0,SMALL($C52:$X52,AD$1)))=0,100,AD52) -> 100 | AK52: =SUM(AF52:AJ52) -> 500
A53: 52 | Y53: =SUM(C53:X53) -> 0 | Z53: =IF(ISERROR(SMALL($C53:$X53,Z$1)),0,IF($Y53=0,0,SMALL($C53:$X53,Z$1))) -> 0 | AA53: =IF(ISERROR(SMALL($C53:$X53,AA$1)),0,IF($Y53=0,0,SMALL($C53:$X53,AA$1))) -> 0 | AB53: =IF(ISERROR(SMALL($C53:$X53,AB$1)),0,IF($Y53=0,0,SMALL($C53:$X53,AB$1))) -> 0 | AC53: =IF(ISERROR(SMALL($C53:$X53,AC$1)),0,IF($Y53=0,0,SMALL($C53:$X53,AC$1))) -> 0 | AD53: =IF(ISERROR(SMALL($C53:$X53,AD$1)),0,IF($Y53=0,0,SMALL($C53:$X53,AD$1))) -> 0 | AE53: =SUM(Z53:AD53) -> 0 | AF53: =IF(IF(ISERROR(SMALL($C53:$X53,Z$1)),0,IF($Y53=0,0,SMALL($C53:$X53,Z$1)))=0,100,Z53) -> 100 | AG53: =IF(IF(ISERROR(SMALL($C53:$X53,AA$1)),0,IF($Y53=0,0,SMALL($C53:$X53,AA$1)))=0,100,AA53) -> 100 | AH53: =IF(IF(ISERROR(SMALL($C53:$X53,AB$1)),0,IF($Y53=0,0,SMALL($C53:$X53,AB$1)))=0,100,AB53) -> 100 | AI53: =IF(IF(ISERROR(SMALL($C53:$X53,AC$1)),0,IF($Y53=0,0,SMALL($C53:$X53,AC$1)))=0,100,AC53) -> 100 | AJ53: =IF(IF(ISERROR(SMALL($C53:$X53,AD$1)),0,IF($Y53=0,0,SMALL($C53:$X53,AD$1)))=0,100,AD53) -> 100 | AK53: =SUM(AF53:AJ53) -> 500
A54: 53 | Y54: =SUM(C54:X54) -> 0 | Z54: =IF(ISERROR(SMALL($C54:$X54,Z$1)),0,IF($Y54=0,0,SMALL($C54:$X54,Z$1))) -> 0 | AA54: =IF(ISERROR(SMALL($C54:$X54,AA$1)),0,IF($Y54=0,0,SMALL($C54:$X54,AA$1))) -> 0 | AB54: =IF(ISERROR(SMALL($C54:$X54,AB$1)),0,IF($Y54=0,0,SMALL($C54:$X54,AB$1))) -> 0 | AC54: =IF(ISERROR(SMALL($C54:$X54,AC$1)),0,IF($Y54=0,0,SMALL($C54:$X54,AC$1))) -> 0 | AD54: =IF(ISERROR(SMALL($C54:$X54,AD$1)),0,IF($Y54=0,0,SMALL($C54:$X54,AD$1))) -> 0 | AE54: =SUM(Z54:AD54) -> 0 | AF54: =IF(IF(ISERROR(SMALL($C54:$X54,Z$1)),0,IF($Y54=0,0,SMALL($C54:$X54,Z$1)))=0,100,Z54) -> 100 | AG54: =IF(IF(ISERROR(SMALL($C54:$X54,AA$1)),0,IF($Y54=0,0,SMALL($C54:$X54,AA$1)))=0,100,AA54) -> 100 | AH54: =IF(IF(ISERROR(SMALL($C54:$X54,AB$1)),0,IF($Y54=0,0,SMALL($C54:$X54,AB$1)))=0,100,AB54) -> 100 | AI54: =IF(IF(ISERROR(SMALL($C54:$X54,AC$1)),0,IF($Y54=0,0,SMALL($C54:$X54,AC$1)))=0,100,AC54) -> 100 | AJ54: =IF(IF(ISERROR(SMALL($C54:$X54,AD$1)),0,IF($Y54=0,0,SMALL($C54:$X54,AD$1)))=0,100,AD54) -> 100 | AK54: =SUM(AF54:AJ54) -> 500
A55: 54 | Y55: =SUM(C55:X55) -> 0 | Z55: =IF(ISERROR(SMALL($C55:$X55,Z$1)),0,IF($Y55=0,0,SMALL($C55:$X55,Z$1))) -> 0 | AA55: =IF(ISERROR(SMALL($C55:$X55,AA$1)),0,IF($Y55=0,0,SMALL($C55:$X55,AA$1))) -> 0 | AB55: =IF(ISERROR(SMALL($C55:$X55,AB$1)),0,IF($Y55=0,0,SMALL($C55:$X55,AB$1))) -> 0 | AC55: =IF(ISERROR(SMALL($C55:$X55,AC$1)),0,IF($Y55=0,0,SMALL($C55:$X55,AC$1))) -> 0 | AD55: =IF(ISERROR(SMALL($C55:$X55,AD$1)),0,IF($Y55=0,0,SMALL($C55:$X55,AD$1))) -> 0 | AE55: =SUM(Z55:AD55) -> 0 | AF55: =IF(IF(ISERROR(SMALL($C55:$X55,Z$1)),0,IF($Y55=0,0,SMALL($C55:$X55,Z$1)))=0,100,Z55) -> 100 | AG55: =IF(IF(ISERROR(SMALL($C55:$X55,AA$1)),0,IF($Y55=0,0,SMALL($C55:$X55,AA$1)))=0,100,AA55) -> 100 | AH55: =IF(IF(ISERROR(SMALL($C55:$X55,AB$1)),0,IF($Y55=0,0,SMALL($C55:$X55,AB$1)))=0,100,AB55) -> 100 | AI55: =IF(IF(ISERROR(SMALL($C55:$X55,AC$1)),0,IF($Y55=0,0,SMALL($C55:$X55,AC$1)))=0,100,AC55) -> 100 | AJ55: =IF(IF(ISERROR(SMALL($C55:$X55,AD$1)),0,IF($Y55=0,0,SMALL($C55:$X55,AD$1)))=0,100,AD55) -> 100 | AK55: =SUM(AF55:AJ55) -> 500
A56: 55 | Y56: =SUM(C56:X56) -> 0 | Z56: =IF(ISERROR(SMALL($C56:$X56,Z$1)),0,IF($Y56=0,0,SMALL($C56:$X56,Z$1))) -> 0 | AA56: =IF(ISERROR(SMALL($C56:$X56,AA$1)),0,IF($Y56=0,0,SMALL($C56:$X56,AA$1))) -> 0 | AB56: =IF(ISERROR(SMALL($C56:$X56,AB$1)),0,IF($Y56=0,0,SMALL($C56:$X56,AB$1))) -> 0 | AC56: =IF(ISERROR(SMALL($C56:$X56,AC$1)),0,IF($Y56=0,0,SMALL($C56:$X56,AC$1))) -> 0 | AD56: =IF(ISERROR(SMALL($C56:$X56,AD$1)),0,IF($Y56=0,0,SMALL($C56:$X56,AD$1))) -> 0 | AE56: =SUM(Z56:AD56) -> 0 | AF56: =IF(IF(ISERROR(SMALL($C56:$X56,Z$1)),0,IF($Y56=0,0,SMALL($C56:$X56,Z$1)))=0,100,Z56) -> 100 | AG56: =IF(IF(ISERROR(SMALL($C56:$X56,AA$1)),0,IF($Y56=0,0,SMALL($C56:$X56,AA$1)))=0,100,AA56) -> 100 | AH56: =IF(IF(ISERROR(SMALL($C56:$X56,AB$1)),0,IF($Y56=0,0,SMALL($C56:$X56,AB$1)))=0,100,AB56) -> 100 | AI56: =IF(IF(ISERROR(SMALL($C56:$X56,AC$1)),0,IF($Y56=0,0,SMALL($C56:$X56,AC$1)))=0,100,AC56) -> 100 | AJ56: =IF(IF(ISERROR(SMALL($C56:$X56,AD$1)),0,IF($Y56=0,0,SMALL($C56:$X56,AD$1)))=0,100,AD56) -> 100 | AK56: =SUM(AF56:AJ56) -> 500
A57: 56 | Y57: =SUM(C57:X57) -> 0 | Z57: =IF(ISERROR(SMALL($C57:$X57,Z$1)),0,IF($Y57=0,0,SMALL($C57:$X57,Z$1))) -> 0 | AA57: =IF(ISERROR(SMALL($C57:$X57,AA$1)),0,IF($Y57=0,0,SMALL($C57:$X57,AA$1))) -> 0 | AB57: =IF(ISERROR(SMALL($C57:$X57,AB$1)),0,IF($Y57=0,0,SMALL($C57:$X57,AB$1))) -> 0 | AC57: =IF(ISERROR(SMALL($C57:$X57,AC$1)),0,IF($Y57=0,0,SMALL($C57:$X57,AC$1))) -> 0 | AD57: =IF(ISERROR(SMALL($C57:$X57,AD$1)),0,IF($Y57=0,0,SMALL($C57:$X57,AD$1))) -> 0 | AE57: =SUM(Z57:AD57) -> 0 | AF57: =IF(IF(ISERROR(SMALL($C57:$X57,Z$1)),0,IF($Y57=0,0,SMALL($C57:$X57,Z$1)))=0,100,Z57) -> 100 | AG57: =IF(IF(ISERROR(SMALL($C57:$X57,AA$1)),0,IF($Y57=0,0,SMALL($C57:$X57,AA$1)))=0,100,AA57) -> 100 | AH57: =IF(IF(ISERROR(SMALL($C57:$X57,AB$1)),0,IF($Y57=0,0,SMALL($C57:$X57,AB$1)))=0,100,AB57) -> 100 | AI57: =IF(IF(ISERROR(SMALL($C57:$X57,AC$1)),0,IF($Y57=0,0,SMALL($C57:$X57,AC$1)))=0,100,AC57) -> 100 | AJ57: =IF(IF(ISERROR(SMALL($C57:$X57,AD$1)),0,IF($Y57=0,0,SMALL($C57:$X57,AD$1)))=0,100,AD57) -> 100 | AK57: =SUM(AF57:AJ57) -> 500
A58: 57 | Y58: =SUM(C58:X58) -> 0 | Z58: =IF(ISERROR(SMALL($C58:$X58,Z$1)),0,IF($Y58=0,0,SMALL($C58:$X58,Z$1))) -> 0 | AA58: =IF(ISERROR(SMALL($C58:$X58,AA$1)),0,IF($Y58=0,0,SMALL($C58:$X58,AA$1))) -> 0 | AB58: =IF(ISERROR(SMALL($C58:$X58,AB$1)),0,IF($Y58=0,0,SMALL($C58:$X58,AB$1))) -> 0 | AC58: =IF(ISERROR(SMALL($C58:$X58,AC$1)),0,IF($Y58=0,0,SMALL($C58:$X58,AC$1))) -> 0 | AD58: =IF(ISERROR(SMALL($C58:$X58,AD$1)),0,IF($Y58=0,0,SMALL($C58:$X58,AD$1))) -> 0 | AE58: =SUM(Z58:AD58) -> 0 | AF58: =IF(IF(ISERROR(SMALL($C58:$X58,Z$1)),0,IF($Y58=0,0,SMALL($C58:$X58,Z$1)))=0,100,Z58) -> 100 | AG58: =IF(IF(ISERROR(SMALL($C58:$X58,AA$1)),0,IF($Y58=0,0,SMALL($C58:$X58,AA$1)))=0,100,AA58) -> 100 | AH58: =IF(IF(ISERROR(SMALL($C58:$X58,AB$1)),0,IF($Y58=0,0,SMALL($C58:$X58,AB$1)))=0,100,AB58) -> 100 | AI58: =IF(IF(ISERROR(SMALL($C58:$X58,AC$1)),0,IF($Y58=0,0,SMALL($C58:$X58,AC$1)))=0,100,AC58) -> 100 | AJ58: =IF(IF(ISERROR(SMALL($C58:$X58,AD$1)),0,IF($Y58=0,0,SMALL($C58:$X58,AD$1)))=0,100,AD58) -> 100 | AK58: =SUM(AF58:AJ58) -> 500
A59: 58 | Y59: =SUM(C59:X59) -> 0 | Z59: =IF(ISERROR(SMALL($C59:$X59,Z$1)),0,IF($Y59=0,0,SMALL($C59:$X59,Z$1))) -> 0 | AA59: =IF(ISERROR(SMALL($C59:$X59,AA$1)),0,IF($Y59=0,0,SMALL($C59:$X59,AA$1))) -> 0 | AB59: =IF(ISERROR(SMALL($C59:$X59,AB$1)),0,IF($Y59=0,0,SMALL($C59:$X59,AB$1))) -> 0 | AC59: =IF(ISERROR(SMALL($C59:$X59,AC$1)),0,IF($Y59=0,0,SMALL($C59:$X59,AC$1))) -> 0 | AD59: =IF(ISERROR(SMALL($C59:$X59,AD$1)),0,IF($Y59=0,0,SMALL($C59:$X59,AD$1))) -> 0 | AE59: =SUM(Z59:AD59) -> 0 | AF59: =IF(IF(ISERROR(SMALL($C59:$X59,Z$1)),0,IF($Y59=0,0,SMALL($C59:$X59,Z$1)))=0,100,Z59) -> 100 | AG59: =IF(IF(ISERROR(SMALL($C59:$X59,AA$1)),0,IF($Y59=0,0,SMALL($C59:$X59,AA$1)))=0,100,AA59) -> 100 | AH59: =IF(IF(ISERROR(SMALL($C59:$X59,AB$1)),0,IF($Y59=0,0,SMALL($C59:$X59,AB$1)))=0,100,AB59) -> 100 | AI59: =IF(IF(ISERROR(SMALL($C59:$X59,AC$1)),0,IF($Y59=0,0,SMALL($C59:$X59,AC$1)))=0,100,AC59) -> 100 | AJ59: =IF(IF(ISERROR(SMALL($C59:$X59,AD$1)),0,IF($Y59=0,0,SMALL($C59:$X59,AD$1)))=0,100,AD59) -> 100 | AK59: =SUM(AF59:AJ59) -> 500
A60: 59 | Y60: =SUM(C60:X60) -> 0 | Z60: =IF(ISERROR(SMALL($C60:$X60,Z$1)),0,IF($Y60=0,0,SMALL($C60:$X60,Z$1))) -> 0 | AA60: =IF(ISERROR(SMALL($C60:$X60,AA$1)),0,IF($Y60=0,0,SMALL($C60:$X60,AA$1))) -> 0 | AB60: =IF(ISERROR(SMALL($C60:$X60,AB$1)),0,IF($Y60=0,0,SMALL($C60:$X60,AB$1))) -> 0 | AC60: =IF(ISERROR(SMALL($C60:$X60,AC$1)),0,IF($Y60=0,0,SMALL($C60:$X60,AC$1))) -> 0 | AD60: =IF(ISERROR(SMALL($C60:$X60,AD$1)),0,IF($Y60=0,0,SMALL($C60:$X60,AD$1))) -> 0 | AE60: =SUM(Z60:AD60) -> 0 | AF60: =IF(IF(ISERROR(SMALL($C60:$X60,Z$1)),0,IF($Y60=0,0,SMALL($C60:$X60,Z$1)))=0,100,Z60) -> 100 | AG60: =IF(IF(ISERROR(SMALL($C60:$X60,AA$1)),0,IF($Y60=0,0,SMALL($C60:$X60,AA$1)))=0,100,AA60) -> 100 | AH60: =IF(IF(ISERROR(SMALL($C60:$X60,AB$1)),0,IF($Y60=0,0,SMALL($C60:$X60,AB$1)))=0,100,AB60) -> 100 | AI60: =IF(IF(ISERROR(SMALL($C60:$X60,AC$1)),0,IF($Y60=0,0,SMALL($C60:$X60,AC$1)))=0,100,AC60) -> 100 | AJ60: =IF(IF(ISERROR(SMALL($C60:$X60,AD$1)),0,IF($Y60=0,0,SMALL($C60:$X60,AD$1)))=0,100,AD60) -> 100 | AK60: =SUM(AF60:AJ60) -> 500
A61: 60 | Y61: =SUM(C61:X61) -> 0 | Z61: =IF(ISERROR(SMALL($C61:$X61,Z$1)),0,IF($Y61=0,0,SMALL($C61:$X61,Z$1))) -> 0 | AA61: =IF(ISERROR(SMALL($C61:$X61,AA$1)),0,IF($Y61=0,0,SMALL($C61:$X61,AA$1))) -> 0 | AB61: =IF(ISERROR(SMALL($C61:$X61,AB$1)),0,IF($Y61=0,0,SMALL($C61:$X61,AB$1))) -> 0 | AC61: =IF(ISERROR(SMALL($C61:$X61,AC$1)),0,IF($Y61=0,0,SMALL($C61:$X61,AC$1))) -> 0 | AD61: =IF(ISERROR(SMALL($C61:$X61,AD$1)),0,IF($Y61=0,0,SMALL($C61:$X61,AD$1))) -> 0 | AE61: =SUM(Z61:AD61) -> 0 | AF61: =IF(IF(ISERROR(SMALL($C61:$X61,Z$1)),0,IF($Y61=0,0,SMALL($C61:$X61,Z$1)))=0,100,Z61) -> 100 | AG61: =IF(IF(ISERROR(SMALL($C61:$X61,AA$1)),0,IF($Y61=0,0,SMALL($C61:$X61,AA$1)))=0,100,AA61) -> 100 | AH61: =IF(IF(ISERROR(SMALL($C61:$X61,AB$1)),0,IF($Y61=0,0,SMALL($C61:$X61,AB$1)))=0,100,AB61) -> 100 | AI61: =IF(IF(ISERROR(SMALL($C61:$X61,AC$1)),0,IF($Y61=0,0,SMALL($C61:$X61,AC$1)))=0,100,AC61) -> 100 | AJ61: =IF(IF(ISERROR(SMALL($C61:$X61,AD$1)),0,IF($Y61=0,0,SMALL($C61:$X61,AD$1)))=0,100,AD61) -> 100 | AK61: =SUM(AF61:AJ61) -> 500
A62: 61 | Y62: =SUM(C62:X62) -> 0 | Z62: =IF(ISERROR(SMALL($C62:$X62,Z$1)),0,IF($Y62=0,0,SMALL($C62:$X62,Z$1))) -> 0 | AA62: =IF(ISERROR(SMALL($C62:$X62,AA$1)),0,IF($Y62=0,0,SMALL($C62:$X62,AA$1))) -> 0 | AB62: =IF(ISERROR(SMALL($C62:$X62,AB$1)),0,IF($Y62=0,0,SMALL($C62:$X62,AB$1))) -> 0 | AC62: =IF(ISERROR(SMALL($C62:$X62,AC$1)),0,IF($Y62=0,0,SMALL($C62:$X62,AC$1))) -> 0 | AD62: =IF(ISERROR(SMALL($C62:$X62,AD$1)),0,IF($Y62=0,0,SMALL($C62:$X62,AD$1))) -> 0 | AE62: =SUM(Z62:AD62) -> 0 | AF62: =IF(IF(ISERROR(SMALL($C62:$X62,Z$1)),0,IF($Y62=0,0,SMALL($C62:$X62,Z$1)))=0,100,Z62) -> 100 | AG62: =IF(IF(ISERROR(SMALL($C62:$X62,AA$1)),0,IF($Y62=0,0,SMALL($C62:$X62,AA$1)))=0,100,AA62) -> 100 | AH62: =IF(IF(ISERROR(SMALL($C62:$X62,AB$1)),0,IF($Y62=0,0,SMALL($C62:$X62,AB$1)))=0,100,AB62) -> 100 | AI62: =IF(IF(ISERROR(SMALL($C62:$X62,AC$1)),0,IF($Y62=0,0,SMALL($C62:$X62,AC$1)))=0,100,AC62) -> 100 | AJ62: =IF(IF(ISERROR(SMALL($C62:$X62,AD$1)),0,IF($Y62=0,0,SMALL($C62:$X62,AD$1)))=0,100,AD62) -> 100 | AK62: =SUM(AF62:AJ62) -> 500
A63: 62 | Y63: =SUM(C63:X63) -> 0 | Z63: =IF(ISERROR(SMALL($C63:$X63,Z$1)),0,IF($Y63=0,0,SMALL($C63:$X63,Z$1))) -> 0 | AA63: =IF(ISERROR(SMALL($C63:$X63,AA$1)),0,IF($Y63=0,0,SMALL($C63:$X63,AA$1))) -> 0 | AB63: =IF(ISERROR(SMALL($C63:$X63,AB$1)),0,IF($Y63=0,0,SMALL($C63:$X63,AB$1))) -> 0 | AC63: =IF(ISERROR(SMALL($C63:$X63,AC$1)),0,IF($Y63=0,0,SMALL($C63:$X63,AC$1))) -> 0 | AD63: =IF(ISERROR(SMALL($C63:$X63,AD$1)),0,IF($Y63=0,0,SMALL($C63:$X63,AD$1))) -> 0 | AE63: =SUM(Z63:AD63) -> 0 | AF63: =IF(IF(ISERROR(SMALL($C63:$X63,Z$1)),0,IF($Y63=0,0,SMALL($C63:$X63,Z$1)))=0,100,Z63) -> 100 | AG63: =IF(IF(ISERROR(SMALL($C63:$X63,AA$1)),0,IF($Y63=0,0,SMALL($C63:$X63,AA$1)))=0,100,AA63) -> 100 | AH63: =IF(IF(ISERROR(SMALL($C63:$X63,AB$1)),0,IF($Y63=0,0,SMALL($C63:$X63,AB$1)))=0,100,AB63) -> 100 | AI63: =IF(IF(ISERROR(SMALL($C63:$X63,AC$1)),0,IF($Y63=0,0,SMALL($C63:$X63,AC$1)))=0,100,AC63) -> 100 | AJ63: =IF(IF(ISERROR(SMALL($C63:$X63,AD$1)),0,IF($Y63=0,0,SMALL($C63:$X63,AD$1)))=0,100,AD63) -> 100 | AK63: =SUM(AF63:AJ63) -> 500
A64: 63 | Y64: =SUM(C64:X64) -> 0 | Z64: =IF(ISERROR(SMALL($C64:$X64,Z$1)),0,IF($Y64=0,0,SMALL($C64:$X64,Z$1))) -> 0 | AA64: =IF(ISERROR(SMALL($C64:$X64,AA$1)),0,IF($Y64=0,0,SMALL($C64:$X64,AA$1))) -> 0 | AB64: =IF(ISERROR(SMALL($C64:$X64,AB$1)),0,IF($Y64=0,0,SMALL($C64:$X64,AB$1))) -> 0 | AC64: =IF(ISERROR(SMALL($C64:$X64,AC$1)),0,IF($Y64=0,0,SMALL($C64:$X64,AC$1))) -> 0 | AD64: =IF(ISERROR(SMALL($C64:$X64,AD$1)),0,IF($Y64=0,0,SMALL($C64:$X64,AD$1))) -> 0 | AE64: =SUM(Z64:AD64) -> 0 | AF64: =IF(IF(ISERROR(SMALL($C64:$X64,Z$1)),0,IF($Y64=0,0,SMALL($C64:$X64,Z$1)))=0,100,Z64) -> 100 | AG64: =IF(IF(ISERROR(SMALL($C64:$X64,AA$1)),0,IF($Y64=0,0,SMALL($C64:$X64,AA$1)))=0,100,AA64) -> 100 | AH64: =IF(IF(ISERROR(SMALL($C64:$X64,AB$1)),0,IF($Y64=0,0,SMALL($C64:$X64,AB$1)))=0,100,AB64) -> 100 | AI64: =IF(IF(ISERROR(SMALL($C64:$X64,AC$1)),0,IF($Y64=0,0,SMALL($C64:$X64,AC$1)))=0,100,AC64) -> 100 | AJ64: =IF(IF(ISERROR(SMALL($C64:$X64,AD$1)),0,IF($Y64=0,0,SMALL($C64:$X64,AD$1)))=0,100,AD64) -> 100 | AK64: =SUM(AF64:AJ64) -> 500
A65: 64 | Y65: =SUM(C65:X65) -> 0 | Z65: =IF(ISERROR(SMALL($C65:$X65,Z$1)),0,IF($Y65=0,0,SMALL($C65:$X65,Z$1))) -> 0 | AA65: =IF(ISERROR(SMALL($C65:$X65,AA$1)),0,IF($Y65=0,0,SMALL($C65:$X65,AA$1))) -> 0 | AB65: =IF(ISERROR(SMALL($C65:$X65,AB$1)),0,IF($Y65=0,0,SMALL($C65:$X65,AB$1))) -> 0 | AC65: =IF(ISERROR(SMALL($C65:$X65,AC$1)),0,IF($Y65=0,0,SMALL($C65:$X65,AC$1))) -> 0 | AD65: =IF(ISERROR(SMALL($C65:$X65,AD$1)),0,IF($Y65=0,0,SMALL($C65:$X65,AD$1))) -> 0 | AE65: =SUM(Z65:AD65) -> 0 | AF65: =IF(IF(ISERROR(SMALL($C65:$X65,Z$1)),0,IF($Y65=0,0,SMALL($C65:$X65,Z$1)))=0,100,Z65) -> 100 | AG65: =IF(IF(ISERROR(SMALL($C65:$X65,AA$1)),0,IF($Y65=0,0,SMALL($C65:$X65,AA$1)))=0,100,AA65) -> 100 | AH65: =IF(IF(ISERROR(SMALL($C65:$X65,AB$1)),0,IF($Y65=0,0,SMALL($C65:$X65,AB$1)))=0,100,AB65) -> 100 | AI65: =IF(IF(ISERROR(SMALL($C65:$X65,AC$1)),0,IF($Y65=0,0,SMALL($C65:$X65,AC$1)))=0,100,AC65) -> 100 | AJ65: =IF(IF(ISERROR(SMALL($C65:$X65,AD$1)),0,IF($Y65=0,0,SMALL($C65:$X65,AD$1)))=0,100,AD65) -> 100 | AK65: =SUM(AF65:AJ65) -> 500
A66: 65 | Y66: =SUM(C66:X66) -> 0 | Z66: =IF(ISERROR(SMALL($C66:$X66,Z$1)),0,IF($Y66=0,0,SMALL($C66:$X66,Z$1))) -> 0 | AA66: =IF(ISERROR(SMALL($C66:$X66,AA$1)),0,IF($Y66=0,0,SMALL($C66:$X66,AA$1))) -> 0 | AB66: =IF(ISERROR(SMALL($C66:$X66,AB$1)),0,IF($Y66=0,0,SMALL($C66:$X66,AB$1))) -> 0 | AC66: =IF(ISERROR(SMALL($C66:$X66,AC$1)),0,IF($Y66=0,0,SMALL($C66:$X66,AC$1))) -> 0 | AD66: =IF(ISERROR(SMALL($C66:$X66,AD$1)),0,IF($Y66=0,0,SMALL($C66:$X66,AD$1))) -> 0 | AE66: =SUM(Z66:AD66) -> 0 | AF66: =IF(IF(ISERROR(SMALL($C66:$X66,Z$1)),0,IF($Y66=0,0,SMALL($C66:$X66,Z$1)))=0,100,Z66) -> 100 | AG66: =IF(IF(ISERROR(SMALL($C66:$X66,AA$1)),0,IF($Y66=0,0,SMALL($C66:$X66,AA$1)))=0,100,AA66) -> 100 | AH66: =IF(IF(ISERROR(SMALL($C66:$X66,AB$1)),0,IF($Y66=0,0,SMALL($C66:$X66,AB$1)))=0,100,AB66) -> 100 | AI66: =IF(IF(ISERROR(SMALL($C66:$X66,AC$1)),0,IF($Y66=0,0,SMALL($C66:$X66,AC$1)))=0,100,AC66) -> 100 | AJ66: =IF(IF(ISERROR(SMALL($C66:$X66,AD$1)),0,IF($Y66=0,0,SMALL($C66:$X66,AD$1)))=0,100,AD66) -> 100 | AK66: =SUM(AF66:AJ66) -> 500
A67: 66 | Y67: =SUM(C67:X67) -> 0 | Z67: =IF(ISERROR(SMALL($C67:$X67,Z$1)),0,IF($Y67=0,0,SMALL($C67:$X67,Z$1))) -> 0 | AA67: =IF(ISERROR(SMALL($C67:$X67,AA$1)),0,IF($Y67=0,0,SMALL($C67:$X67,AA$1))) -> 0 | AB67: =IF(ISERROR(SMALL($C67:$X67,AB$1)),0,IF($Y67=0,0,SMALL($C67:$X67,AB$1))) -> 0 | AC67: =IF(ISERROR(SMALL($C67:$X67,AC$1)),0,IF($Y67=0,0,SMALL($C67:$X67,AC$1))) -> 0 | AD67: =IF(ISERROR(SMALL($C67:$X67,AD$1)),0,IF($Y67=0,0,SMALL($C67:$X67,AD$1))) -> 0 | AE67: =SUM(Z67:AD67) -> 0 | AF67: =IF(IF(ISERROR(SMALL($C67:$X67,Z$1)),0,IF($Y67=0,0,SMALL($C67:$X67,Z$1)))=0,100,Z67) -> 100 | AG67: =IF(IF(ISERROR(SMALL($C67:$X67,AA$1)),0,IF($Y67=0,0,SMALL($C67:$X67,AA$1)))=0,100,AA67) -> 100 | AH67: =IF(IF(ISERROR(SMALL($C67:$X67,AB$1)),0,IF($Y67=0,0,SMALL($C67:$X67,AB$1)))=0,100,AB67) -> 100 | AI67: =IF(IF(ISERROR(SMALL($C67:$X67,AC$1)),0,IF($Y67=0,0,SMALL($C67:$X67,AC$1)))=0,100,AC67) -> 100 | AJ67: =IF(IF(ISERROR(SMALL($C67:$X67,AD$1)),0,IF($Y67=0,0,SMALL($C67:$X67,AD$1)))=0,100,AD67) -> 100 | AK67: =SUM(AF67:AJ67) -> 500
A68: 67 | Y68: =SUM(C68:X68) -> 0 | Z68: =IF(ISERROR(SMALL($C68:$X68,Z$1)),0,IF($Y68=0,0,SMALL($C68:$X68,Z$1))) -> 0 | AA68: =IF(ISERROR(SMALL($C68:$X68,AA$1)),0,IF($Y68=0,0,SMALL($C68:$X68,AA$1))) -> 0 | AB68: =IF(ISERROR(SMALL($C68:$X68,AB$1)),0,IF($Y68=0,0,SMALL($C68:$X68,AB$1))) -> 0 | AC68: =IF(ISERROR(SMALL($C68:$X68,AC$1)),0,IF($Y68=0,0,SMALL($C68:$X68,AC$1))) -> 0 | AD68: =IF(ISERROR(SMALL($C68:$X68,AD$1)),0,IF($Y68=0,0,SMALL($C68:$X68,AD$1))) -> 0 | AE68: =SUM(Z68:AD68) -> 0 | AF68: =IF(IF(ISERROR(SMALL($C68:$X68,Z$1)),0,IF($Y68=0,0,SMALL($C68:$X68,Z$1)))=0,100,Z68) -> 100 | AG68: =IF(IF(ISERROR(SMALL($C68:$X68,AA$1)),0,IF($Y68=0,0,SMALL($C68:$X68,AA$1)))=0,100,AA68) -> 100 | AH68: =IF(IF(ISERROR(SMALL($C68:$X68,AB$1)),0,IF($Y68=0,0,SMALL($C68:$X68,AB$1)))=0,100,AB68) -> 100 | AI68: =IF(IF(ISERROR(SMALL($C68:$X68,AC$1)),0,IF($Y68=0,0,SMALL($C68:$X68,AC$1)))=0,100,AC68) -> 100 | AJ68: =IF(IF(ISERROR(SMALL($C68:$X68,AD$1)),0,IF($Y68=0,0,SMALL($C68:$X68,AD$1)))=0,100,AD68) -> 100 | AK68: =SUM(AF68:AJ68) -> 500
A69: 68 | Y69: =SUM(C69:X69) -> 0 | Z69: =IF(ISERROR(SMALL($C69:$X69,Z$1)),0,IF($Y69=0,0,SMALL($C69:$X69,Z$1))) -> 0 | AA69: =IF(ISERROR(SMALL($C69:$X69,AA$1)),0,IF($Y69=0,0,SMALL($C69:$X69,AA$1))) -> 0 | AB69: =IF(ISERROR(SMALL($C69:$X69,AB$1)),0,IF($Y69=0,0,SMALL($C69:$X69,AB$1))) -> 0 | AC69: =IF(ISERROR(SMALL($C69:$X69,AC$1)),0,IF($Y69=0,0,SMALL($C69:$X69,AC$1))) -> 0 | AD69: =IF(ISERROR(SMALL($C69:$X69,AD$1)),0,IF($Y69=0,0,SMALL($C69:$X69,AD$1))) -> 0 | AE69: =SUM(Z69:AD69) -> 0 | AF69: =IF(IF(ISERROR(SMALL($C69:$X69,Z$1)),0,IF($Y69=0,0,SMALL($C69:$X69,Z$1)))=0,100,Z69) -> 100 | AG69: =IF(IF(ISERROR(SMALL($C69:$X69,AA$1)),0,IF($Y69=0,0,SMALL($C69:$X69,AA$1)))=0,100,AA69) -> 100 | AH69: =IF(IF(ISERROR(SMALL($C69:$X69,AB$1)),0,IF($Y69=0,0,SMALL($C69:$X69,AB$1)))=0,100,AB69) -> 100 | AI69: =IF(IF(ISERROR(SMALL($C69:$X69,AC$1)),0,IF($Y69=0,0,SMALL($C69:$X69,AC$1)))=0,100,AC69) -> 100 | AJ69: =IF(IF(ISERROR(SMALL($C69:$X69,AD$1)),0,IF($Y69=0,0,SMALL($C69:$X69,AD$1)))=0,100,AD69) -> 100 | AK69: =SUM(AF69:AJ69) -> 500
A70: 69 | Y70: =SUM(C70:X70) -> 0 | Z70: =IF(ISERROR(SMALL($C70:$X70,Z$1)),0,IF($Y70=0,0,SMALL($C70:$X70,Z$1))) -> 0 | AA70: =IF(ISERROR(SMALL($C70:$X70,AA$1)),0,IF($Y70=0,0,SMALL($C70:$X70,AA$1))) -> 0 | AB70: =IF(ISERROR(SMALL($C70:$X70,AB$1)),0,IF($Y70=0,0,SMALL($C70:$X70,AB$1))) -> 0 | AC70: =IF(ISERROR(SMALL($C70:$X70,AC$1)),0,IF($Y70=0,0,SMALL($C70:$X70,AC$1))) -> 0 | AD70: =IF(ISERROR(SMALL($C70:$X70,AD$1)),0,IF($Y70=0,0,SMALL($C70:$X70,AD$1))) -> 0 | AE70: =SUM(Z70:AD70) -> 0 | AF70: =IF(IF(ISERROR(SMALL($C70:$X70,Z$1)),0,IF($Y70=0,0,SMALL($C70:$X70,Z$1)))=0,100,Z70) -> 100 | AG70: =IF(IF(ISERROR(SMALL($C70:$X70,AA$1)),0,IF($Y70=0,0,SMALL($C70:$X70,AA$1)))=0,100,AA70) -> 100 | AH70: =IF(IF(ISERROR(SMALL($C70:$X70,AB$1)),0,IF($Y70=0,0,SMALL($C70:$X70,AB$1)))=0,100,AB70) -> 100 | AI70: =IF(IF(ISERROR(SMALL($C70:$X70,AC$1)),0,IF($Y70=0,0,SMALL($C70:$X70,AC$1)))=0,100,AC70) -> 100 | AJ70: =IF(IF(ISERROR(SMALL($C70:$X70,AD$1)),0,IF($Y70=0,0,SMALL($C70:$X70,AD$1)))=0,100,AD70) -> 100 | AK70: =SUM(AF70:AJ70) -> 500
A71: 70 | Y71: =SUM(C71:X71) -> 0 | Z71: =IF(ISERROR(SMALL($C71:$X71,Z$1)),0,IF($Y71=0,0,SMALL($C71:$X71,Z$1))) -> 0 | AA71: =IF(ISERROR(SMALL($C71:$X71,AA$1)),0,IF($Y71=0,0,SMALL($C71:$X71,AA$1))) -> 0 | AB71: =IF(ISERROR(SMALL($C71:$X71,AB$1)),0,IF($Y71=0,0,SMALL($C71:$X71,AB$1))) -> 0 | AC71: =IF(ISERROR(SMALL($C71:$X71,AC$1)),0,IF($Y71=0,0,SMALL($C71:$X71,AC$1))) -> 0 | AD71: =IF(ISERROR(SMALL($C71:$X71,AD$1)),0,IF($Y71=0,0,SMALL($C71:$X71,AD$1))) -> 0 | AE71: =SUM(Z71:AD71) -> 0 | AF71: =IF(IF(ISERROR(SMALL($C71:$X71,Z$1)),0,IF($Y71=0,0,SMALL($C71:$X71,Z$1)))=0,100,Z71) -> 100 | AG71: =IF(IF(ISERROR(SMALL($C71:$X71,AA$1)),0,IF($Y71=0,0,SMALL($C71:$X71,AA$1)))=0,100,AA71) -> 100 | AH71: =IF(IF(ISERROR(SMALL($C71:$X71,AB$1)),0,IF($Y71=0,0,SMALL($C71:$X71,AB$1)))=0,100,AB71) -> 100 | AI71: =IF(IF(ISERROR(SMALL($C71:$X71,AC$1)),0,IF($Y71=0,0,SMALL($C71:$X71,AC$1)))=0,100,AC71) -> 100 | AJ71: =IF(IF(ISERROR(SMALL($C71:$X71,AD$1)),0,IF($Y71=0,0,SMALL($C71:$X71,AD$1)))=0,100,AD71) -> 100 | AK71: =SUM(AF71:AJ71) -> 500
A72: 71 | Y72: =SUM(C72:X72) -> 0 | Z72: =IF(ISERROR(SMALL($C72:$X72,Z$1)),0,IF($Y72=0,0,SMALL($C72:$X72,Z$1))) -> 0 | AA72: =IF(ISERROR(SMALL($C72:$X72,AA$1)),0,IF($Y72=0,0,SMALL($C72:$X72,AA$1))) -> 0 | AB72: =IF(ISERROR(SMALL($C72:$X72,AB$1)),0,IF($Y72=0,0,SMALL($C72:$X72,AB$1))) -> 0 | AC72: =IF(ISERROR(SMALL($C72:$X72,AC$1)),0,IF($Y72=0,0,SMALL($C72:$X72,AC$1))) -> 0 | AD72: =IF(ISERROR(SMALL($C72:$X72,AD$1)),0,IF($Y72=0,0,SMALL($C72:$X72,AD$1))) -> 0 | AE72: =SUM(Z72:AD72) -> 0 | AF72: =IF(IF(ISERROR(SMALL($C72:$X72,Z$1)),0,IF($Y72=0,0,SMALL($C72:$X72,Z$1)))=0,100,Z72) -> 100 | AG72: =IF(IF(ISERROR(SMALL($C72:$X72,AA$1)),0,IF($Y72=0,0,SMALL($C72:$X72,AA$1)))=0,100,AA72) -> 100 | AH72: =IF(IF(ISERROR(SMALL($C72:$X72,AB$1)),0,IF($Y72=0,0,SMALL($C72:$X72,AB$1)))=0,100,AB72) -> 100 | AI72: =IF(IF(ISERROR(SMALL($C72:$X72,AC$1)),0,IF($Y72=0,0,SMALL($C72:$X72,AC$1)))=0,100,AC72) -> 100 | AJ72: =IF(IF(ISERROR(SMALL($C72:$X72,AD$1)),0,IF($Y72=0,0,SMALL($C72:$X72,AD$1)))=0,100,AD72) -> 100 | AK72: =SUM(AF72:AJ72) -> 500
A73: 72 | Y73: =SUM(C73:X73) -> 0 | Z73: =IF(ISERROR(SMALL($C73:$X73,Z$1)),0,IF($Y73=0,0,SMALL($C73:$X73,Z$1))) -> 0 | AA73: =IF(ISERROR(SMALL($C73:$X73,AA$1)),0,IF($Y73=0,0,SMALL($C73:$X73,AA$1))) -> 0 | AB73: =IF(ISERROR(SMALL($C73:$X73,AB$1)),0,IF($Y73=0,0,SMALL($C73:$X73,AB$1))) -> 0 | AC73: =IF(ISERROR(SMALL($C73:$X73,AC$1)),0,IF($Y73=0,0,SMALL($C73:$X73,AC$1))) -> 0 | AD73: =IF(ISERROR(SMALL($C73:$X73,AD$1)),0,IF($Y73=0,0,SMALL($C73:$X73,AD$1))) -> 0 | AE73: =SUM(Z73:AD73) -> 0 | AF73: =IF(IF(ISERROR(SMALL($C73:$X73,Z$1)),0,IF($Y73=0,0,SMALL($C73:$X73,Z$1)))=0,100,Z73) -> 100 | AG73: =IF(IF(ISERROR(SMALL($C73:$X73,AA$1)),0,IF($Y73=0,0,SMALL($C73:$X73,AA$1)))=0,100,AA73) -> 100 | AH73: =IF(IF(ISERROR(SMALL($C73:$X73,AB$1)),0,IF($Y73=0,0,SMALL($C73:$X73,AB$1)))=0,100,AB73) -> 100 | AI73: =IF(IF(ISERROR(SMALL($C73:$X73,AC$1)),0,IF($Y73=0,0,SMALL($C73:$X73,AC$1)))=0,100,AC73) -> 100 | AJ73: =IF(IF(ISERROR(SMALL($C73:$X73,AD$1)),0,IF($Y73=0,0,SMALL($C73:$X73,AD$1)))=0,100,AD73) -> 100 | AK73: =SUM(AF73:AJ73) -> 500
A74: 73 | Y74: =SUM(C74:X74) -> 0 | Z74: =IF(ISERROR(SMALL($C74:$X74,Z$1)),0,IF($Y74=0,0,SMALL($C74:$X74,Z$1))) -> 0 | AA74: =IF(ISERROR(SMALL($C74:$X74,AA$1)),0,IF($Y74=0,0,SMALL($C74:$X74,AA$1))) -> 0 | AB74: =IF(ISERROR(SMALL($C74:$X74,AB$1)),0,IF($Y74=0,0,SMALL($C74:$X74,AB$1))) -> 0 | AC74: =IF(ISERROR(SMALL($C74:$X74,AC$1)),0,IF($Y74=0,0,SMALL($C74:$X74,AC$1))) -> 0 | AD74: =IF(ISERROR(SMALL($C74:$X74,AD$1)),0,IF($Y74=0,0,SMALL($C74:$X74,AD$1))) -> 0 | AE74: =SUM(Z74:AD74) -> 0 | AF74: =IF(IF(ISERROR(SMALL($C74:$X74,Z$1)),0,IF($Y74=0,0,SMALL($C74:$X74,Z$1)))=0,100,Z74) -> 100 | AG74: =IF(IF(ISERROR(SMALL($C74:$X74,AA$1)),0,IF($Y74=0,0,SMALL($C74:$X74,AA$1)))=0,100,AA74) -> 100 | AH74: =IF(IF(ISERROR(SMALL($C74:$X74,AB$1)),0,IF($Y74=0,0,SMALL($C74:$X74,AB$1)))=0,100,AB74) -> 100 | AI74: =IF(IF(ISERROR(SMALL($C74:$X74,AC$1)),0,IF($Y74=0,0,SMALL($C74:$X74,AC$1)))=0,100,AC74) -> 100 | AJ74: =IF(IF(ISERROR(SMALL($C74:$X74,AD$1)),0,IF($Y74=0,0,SMALL($C74:$X74,AD$1)))=0,100,AD74) -> 100 | AK74: =SUM(AF74:AJ74) -> 500
A75: 74 | Y75: =SUM(C75:X75) -> 0 | Z75: =IF(ISERROR(SMALL($C75:$X75,Z$1)),0,IF($Y75=0,0,SMALL($C75:$X75,Z$1))) -> 0 | AA75: =IF(ISERROR(SMALL($C75:$X75,AA$1)),0,IF($Y75=0,0,SMALL($C75:$X75,AA$1))) -> 0 | AB75: =IF(ISERROR(SMALL($C75:$X75,AB$1)),0,IF($Y75=0,0,SMALL($C75:$X75,AB$1))) -> 0 | AC75: =IF(ISERROR(SMALL($C75:$X75,AC$1)),0,IF($Y75=0,0,SMALL($C75:$X75,AC$1))) -> 0 | AD75: =IF(ISERROR(SMALL($C75:$X75,AD$1)),0,IF($Y75=0,0,SMALL($C75:$X75,AD$1))) -> 0 | AE75: =SUM(Z75:AD75) -> 0 | AF75: =IF(IF(ISERROR(SMALL($C75:$X75,Z$1)),0,IF($Y75=0,0,SMALL($C75:$X75,Z$1)))=0,100,Z75) -> 100 | AG75: =IF(IF(ISERROR(SMALL($C75:$X75,AA$1)),0,IF($Y75=0,0,SMALL($C75:$X75,AA$1)))=0,100,AA75) -> 100 | AH75: =IF(IF(ISERROR(SMALL($C75:$X75,AB$1)),0,IF($Y75=0,0,SMALL($C75:$X75,AB$1)))=0,100,AB75) -> 100 | AI75: =IF(IF(ISERROR(SMALL($C75:$X75,AC$1)),0,IF($Y75=0,0,SMALL($C75:$X75,AC$1)))=0,100,AC75) -> 100 | AJ75: =IF(IF(ISERROR(SMALL($C75:$X75,AD$1)),0,IF($Y75=0,0,SMALL($C75:$X75,AD$1)))=0,100,AD75) -> 100 | AK75: =SUM(AF75:AJ75) -> 500
A76: 75 | Y76: =SUM(C76:X76) -> 0 | Z76: =IF(ISERROR(SMALL($C76:$X76,Z$1)),0,IF($Y76=0,0,SMALL($C76:$X76,Z$1))) -> 0 | AA76: =IF(ISERROR(SMALL($C76:$X76,AA$1)),0,IF($Y76=0,0,SMALL($C76:$X76,AA$1))) -> 0 | AB76: =IF(ISERROR(SMALL($C76:$X76,AB$1)),0,IF($Y76=0,0,SMALL($C76:$X76,AB$1))) -> 0 | AC76: =IF(ISERROR(SMALL($C76:$X76,AC$1)),0,IF($Y76=0,0,SMALL($C76:$X76,AC$1))) -> 0 | AD76: =IF(ISERROR(SMALL($C76:$X76,AD$1)),0,IF($Y76=0,0,SMALL($C76:$X76,AD$1))) -> 0 | AE76: =SUM(Z76:AD76) -> 0 | AF76: =IF(IF(ISERROR(SMALL($C76:$X76,Z$1)),0,IF($Y76=0,0,SMALL($C76:$X76,Z$1)))=0,100,Z76) -> 100 | AG76: =IF(IF(ISERROR(SMALL($C76:$X76,AA$1)),0,IF($Y76=0,0,SMALL($C76:$X76,AA$1)))=0,100,AA76) -> 100 | AH76: =IF(IF(ISERROR(SMALL($C76:$X76,AB$1)),0,IF($Y76=0,0,SMALL($C76:$X76,AB$1)))=0,100,AB76) -> 100 | AI76: =IF(IF(ISERROR(SMALL($C76:$X76,AC$1)),0,IF($Y76=0,0,SMALL($C76:$X76,AC$1)))=0,100,AC76) -> 100 | AJ76: =IF(IF(ISERROR(SMALL($C76:$X76,AD$1)),0,IF($Y76=0,0,SMALL($C76:$X76,AD$1)))=0,100,AD76) -> 100 | AK76: =SUM(AF76:AJ76) -> 500
A77: 76 | Y77: =SUM(C77:X77) -> 0 | Z77: =IF(ISERROR(SMALL($C77:$X77,Z$1)),0,IF($Y77=0,0,SMALL($C77:$X77,Z$1))) -> 0 | AA77: =IF(ISERROR(SMALL($C77:$X77,AA$1)),0,IF($Y77=0,0,SMALL($C77:$X77,AA$1))) -> 0 | AB77: =IF(ISERROR(SMALL($C77:$X77,AB$1)),0,IF($Y77=0,0,SMALL($C77:$X77,AB$1))) -> 0 | AC77: =IF(ISERROR(SMALL($C77:$X77,AC$1)),0,IF($Y77=0,0,SMALL($C77:$X77,AC$1))) -> 0 | AD77: =IF(ISERROR(SMALL($C77:$X77,AD$1)),0,IF($Y77=0,0,SMALL($C77:$X77,AD$1))) -> 0 | AE77: =SUM(Z77:AD77) -> 0 | AF77: =IF(IF(ISERROR(SMALL($C77:$X77,Z$1)),0,IF($Y77=0,0,SMALL($C77:$X77,Z$1)))=0,100,Z77) -> 100 | AG77: =IF(IF(ISERROR(SMALL($C77:$X77,AA$1)),0,IF($Y77=0,0,SMALL($C77:$X77,AA$1)))=0,100,AA77) -> 100 | AH77: =IF(IF(ISERROR(SMALL($C77:$X77,AB$1)),0,IF($Y77=0,0,SMALL($C77:$X77,AB$1)))=0,100,AB77) -> 100 | AI77: =IF(IF(ISERROR(SMALL($C77:$X77,AC$1)),0,IF($Y77=0,0,SMALL($C77:$X77,AC$1)))=0,100,AC77) -> 100 | AJ77: =IF(IF(ISERROR(SMALL($C77:$X77,AD$1)),0,IF($Y77=0,0,SMALL($C77:$X77,AD$1)))=0,100,AD77) -> 100 | AK77: =SUM(AF77:AJ77) -> 500
A78: 77 | Y78: =SUM(C78:X78) -> 0 | Z78: =IF(ISERROR(SMALL($C78:$X78,Z$1)),0,IF($Y78=0,0,SMALL($C78:$X78,Z$1))) -> 0 | AA78: =IF(ISERROR(SMALL($C78:$X78,AA$1)),0,IF($Y78=0,0,SMALL($C78:$X78,AA$1))) -> 0 | AB78: =IF(ISERROR(SMALL($C78:$X78,AB$1)),0,IF($Y78=0,0,SMALL($C78:$X78,AB$1))) -> 0 | AC78: =IF(ISERROR(SMALL($C78:$X78,AC$1)),0,IF($Y78=0,0,SMALL($C78:$X78,AC$1))) -> 0 | AD78: =IF(ISERROR(SMALL($C78:$X78,AD$1)),0,IF($Y78=0,0,SMALL($C78:$X78,AD$1))) -> 0 | AE78: =SUM(Z78:AD78) -> 0 | AF78: =IF(IF(ISERROR(SMALL($C78:$X78,Z$1)),0,IF($Y78=0,0,SMALL($C78:$X78,Z$1)))=0,100,Z78) -> 100 | AG78: =IF(IF(ISERROR(SMALL($C78:$X78,AA$1)),0,IF($Y78=0,0,SMALL($C78:$X78,AA$1)))=0,100,AA78) -> 100 | AH78: =IF(IF(ISERROR(SMALL($C78:$X78,AB$1)),0,IF($Y78=0,0,SMALL($C78:$X78,AB$1)))=0,100,AB78) -> 100 | AI78: =IF(IF(ISERROR(SMALL($C78:$X78,AC$1)),0,IF($Y78=0,0,SMALL($C78:$X78,AC$1)))=0,100,AC78) -> 100 | AJ78: =IF(IF(ISERROR(SMALL($C78:$X78,AD$1)),0,IF($Y78=0,0,SMALL($C78:$X78,AD$1)))=0,100,AD78) -> 100 | AK78: =SUM(AF78:AJ78) -> 500
A79: 78 | Y79: =SUM(C79:X79) -> 0 | Z79: =IF(ISERROR(SMALL($C79:$X79,Z$1)),0,IF($Y79=0,0,SMALL($C79:$X79,Z$1))) -> 0 | AA79: =IF(ISERROR(SMALL($C79:$X79,AA$1)),0,IF($Y79=0,0,SMALL($C79:$X79,AA$1))) -> 0 | AB79: =IF(ISERROR(SMALL($C79:$X79,AB$1)),0,IF($Y79=0,0,SMALL($C79:$X79,AB$1))) -> 0 | AC79: =IF(ISERROR(SMALL($C79:$X79,AC$1)),0,IF($Y79=0,0,SMALL($C79:$X79,AC$1))) -> 0 | AD79: =IF(ISERROR(SMALL($C79:$X79,AD$1)),0,IF($Y79=0,0,SMALL($C79:$X79,AD$1))) -> 0 | AE79: =SUM(Z79:AD79) -> 0 | AF79: =IF(IF(ISERROR(SMALL($C79:$X79,Z$1)),0,IF($Y79=0,0,SMALL($C79:$X79,Z$1)))=0,100,Z79) -> 100 | AG79: =IF(IF(ISERROR(SMALL($C79:$X79,AA$1)),0,IF($Y79=0,0,SMALL($C79:$X79,AA$1)))=0,100,AA79) -> 100 | AH79: =IF(IF(ISERROR(SMALL($C79:$X79,AB$1)),0,IF($Y79=0,0,SMALL($C79:$X79,AB$1)))=0,100,AB79) -> 100 | AI79: =IF(IF(ISERROR(SMALL($C79:$X79,AC$1)),0,IF($Y79=0,0,SMALL($C79:$X79,AC$1)))=0,100,AC79) -> 100 | AJ79: =IF(IF(ISERROR(SMALL($C79:$X79,AD$1)),0,IF($Y79=0,0,SMALL($C79:$X79,AD$1)))=0,100,AD79) -> 100 | AK79: =SUM(AF79:AJ79) -> 500
A80: 79 | Y80: =SUM(C80:X80) -> 0 | Z80: =IF(ISERROR(SMALL($C80:$X80,Z$1)),0,IF($Y80=0,0,SMALL($C80:$X80,Z$1))) -> 0 | AA80: =IF(ISERROR(SMALL($C80:$X80,AA$1)),0,IF($Y80=0,0,SMALL($C80:$X80,AA$1))) -> 0 | AB80: =IF(ISERROR(SMALL($C80:$X80,AB$1)),0,IF($Y80=0,0,SMALL($C80:$X80,AB$1))) -> 0 | AC80: =IF(ISERROR(SMALL($C80:$X80,AC$1)),0,IF($Y80=0,0,SMALL($C80:$X80,AC$1))) -> 0 | AD80: =IF(ISERROR(SMALL($C80:$X80,AD$1)),0,IF($Y80=0,0,SMALL($C80:$X80,AD$1))) -> 0 | AE80: =SUM(Z80:AD80) -> 0 | AF80: =IF(IF(ISERROR(SMALL($C80:$X80,Z$1)),0,IF($Y80=0,0,SMALL($C80:$X80,Z$1)))=0,100,Z80) -> 100 | AG80: =IF(IF(ISERROR(SMALL($C80:$X80,AA$1)),0,IF($Y80=0,0,SMALL($C80:$X80,AA$1)))=0,100,AA80) -> 100 | AH80: =IF(IF(ISERROR(SMALL($C80:$X80,AB$1)),0,IF($Y80=0,0,SMALL($C80:$X80,AB$1)))=0,100,AB80) -> 100 | AI80: =IF(IF(ISERROR(SMALL($C80:$X80,AC$1)),0,IF($Y80=0,0,SMALL($C80:$X80,AC$1)))=0,100,AC80) -> 100 | AJ80: =IF(IF(ISERROR(SMALL($C80:$X80,AD$1)),0,IF($Y80=0,0,SMALL($C80:$X80,AD$1)))=0,100,AD80) -> 100 | AK80: =SUM(AF80:AJ80) -> 500
A81: 80 | Y81: =SUM(C81:X81) -> 0 | Z81: =IF(ISERROR(SMALL($C81:$X81,Z$1)),0,IF($Y81=0,0,SMALL($C81:$X81,Z$1))) -> 0 | AA81: =IF(ISERROR(SMALL($C81:$X81,AA$1)),0,IF($Y81=0,0,SMALL($C81:$X81,AA$1))) -> 0 | AB81: =IF(ISERROR(SMALL($C81:$X81,AB$1)),0,IF($Y81=0,0,SMALL($C81:$X81,AB$1))) -> 0 | AC81: =IF(ISERROR(SMALL($C81:$X81,AC$1)),0,IF($Y81=0,0,SMALL($C81:$X81,AC$1))) -> 0 | AD81: =IF(ISERROR(SMALL($C81:$X81,AD$1)),0,IF($Y81=0,0,SMALL($C81:$X81,AD$1))) -> 0 | AE81: =SUM(Z81:AD81) -> 0 | AF81: =IF(IF(ISERROR(SMALL($C81:$X81,Z$1)),0,IF($Y81=0,0,SMALL($C81:$X81,Z$1)))=0,100,Z81) -> 100 | AG81: =IF(IF(ISERROR(SMALL($C81:$X81,AA$1)),0,IF($Y81=0,0,SMALL($C81:$X81,AA$1)))=0,100,AA81) -> 100 | AH81: =IF(IF(ISERROR(SMALL($C81:$X81,AB$1)),0,IF($Y81=0,0,SMALL($C81:$X81,AB$1)))=0,100,AB81) -> 100 | AI81: =IF(IF(ISERROR(SMALL($C81:$X81,AC$1)),0,IF($Y81=0,0,SMALL($C81:$X81,AC$1)))=0,100,AC81) -> 100 | AJ81: =IF(IF(ISERROR(SMALL($C81:$X81,AD$1)),0,IF($Y81=0,0,SMALL($C81:$X81,AD$1)))=0,100,AD81) -> 100 | AK81: =SUM(AF81:AJ81) -> 500
A82: 81 | Y82: =SUM(C82:X82) -> 0 | Z82: =IF(ISERROR(SMALL($C82:$X82,Z$1)),0,IF($Y82=0,0,SMALL($C82:$X82,Z$1))) -> 0 | AA82: =IF(ISERROR(SMALL($C82:$X82,AA$1)),0,IF($Y82=0,0,SMALL($C82:$X82,AA$1))) -> 0 | AB82: =IF(ISERROR(SMALL($C82:$X82,AB$1)),0,IF($Y82=0,0,SMALL($C82:$X82,AB$1))) -> 0 | AC82: =IF(ISERROR(SMALL($C82:$X82,AC$1)),0,IF($Y82=0,0,SMALL($C82:$X82,AC$1))) -> 0 | AD82: =IF(ISERROR(SMALL($C82:$X82,AD$1)),0,IF($Y82=0,0,SMALL($C82:$X82,AD$1))) -> 0 | AE82: =SUM(Z82:AD82) -> 0 | AF82: =IF(IF(ISERROR(SMALL($C82:$X82,Z$1)),0,IF($Y82=0,0,SMALL($C82:$X82,Z$1)))=0,100,Z82) -> 100 | AG82: =IF(IF(ISERROR(SMALL($C82:$X82,AA$1)),0,IF($Y82=0,0,SMALL($C82:$X82,AA$1)))=0,100,AA82) -> 100 | AH82: =IF(IF(ISERROR(SMALL($C82:$X82,AB$1)),0,IF($Y82=0,0,SMALL($C82:$X82,AB$1)))=0,100,AB82) -> 100 | AI82: =IF(IF(ISERROR(SMALL($C82:$X82,AC$1)),0,IF($Y82=0,0,SMALL($C82:$X82,AC$1)))=0,100,AC82) -> 100 | AJ82: =IF(IF(ISERROR(SMALL($C82:$X82,AD$1)),0,IF($Y82=0,0,SMALL($C82:$X82,AD$1)))=0,100,AD82) -> 100 | AK82: =SUM(AF82:AJ82) -> 500
A83: 82 | Y83: =SUM(C83:X83) -> 0 | Z83: =IF(ISERROR(SMALL($C83:$X83,Z$1)),0,IF($Y83=0,0,SMALL($C83:$X83,Z$1))) -> 0 | AA83: =IF(ISERROR(SMALL($C83:$X83,AA$1)),0,IF($Y83=0,0,SMALL($C83:$X83,AA$1))) -> 0 | AB83: =IF(ISERROR(SMALL($C83:$X83,AB$1)),0,IF($Y83=0,0,SMALL($C83:$X83,AB$1))) -> 0 | AC83: =IF(ISERROR(SMALL($C83:$X83,AC$1)),0,IF($Y83=0,0,SMALL($C83:$X83,AC$1))) -> 0 | AD83: =IF(ISERROR(SMALL($C83:$X83,AD$1)),0,IF($Y83=0,0,SMALL($C83:$X83,AD$1))) -> 0 | AE83: =SUM(Z83:AD83) -> 0 | AF83: =IF(IF(ISERROR(SMALL($C83:$X83,Z$1)),0,IF($Y83=0,0,SMALL($C83:$X83,Z$1)))=0,100,Z83) -> 100 | AG83: =IF(IF(ISERROR(SMALL($C83:$X83,AA$1)),0,IF($Y83=0,0,SMALL($C83:$X83,AA$1)))=0,100,AA83) -> 100 | AH83: =IF(IF(ISERROR(SMALL($C83:$X83,AB$1)),0,IF($Y83=0,0,SMALL($C83:$X83,AB$1)))=0,100,AB83) -> 100 | AI83: =IF(IF(ISERROR(SMALL($C83:$X83,AC$1)),0,IF($Y83=0,0,SMALL($C83:$X83,AC$1)))=0,100,AC83) -> 100 | AJ83: =IF(IF(ISERROR(SMALL($C83:$X83,AD$1)),0,IF($Y83=0,0,SMALL($C83:$X83,AD$1)))=0,100,AD83) -> 100 | AK83: =SUM(AF83:AJ83) -> 500
A84: 83 | Y84: =SUM(C84:X84) -> 0 | Z84: =IF(ISERROR(SMALL($C84:$X84,Z$1)),0,IF($Y84=0,0,SMALL($C84:$X84,Z$1))) -> 0 | AA84: =IF(ISERROR(SMALL($C84:$X84,AA$1)),0,IF($Y84=0,0,SMALL($C84:$X84,AA$1))) -> 0 | AB84: =IF(ISERROR(SMALL($C84:$X84,AB$1)),0,IF($Y84=0,0,SMALL($C84:$X84,AB$1))) -> 0 | AC84: =IF(ISERROR(SMALL($C84:$X84,AC$1)),0,IF($Y84=0,0,SMALL($C84:$X84,AC$1))) -> 0 | AD84: =IF(ISERROR(SMALL($C84:$X84,AD$1)),0,IF($Y84=0,0,SMALL($C84:$X84,AD$1))) -> 0 | AE84: =SUM(Z84:AD84) -> 0 | AF84: =IF(IF(ISERROR(SMALL($C84:$X84,Z$1)),0,IF($Y84=0,0,SMALL($C84:$X84,Z$1)))=0,100,Z84) -> 100 | AG84: =IF(IF(ISERROR(SMALL($C84:$X84,AA$1)),0,IF($Y84=0,0,SMALL($C84:$X84,AA$1)))=0,100,AA84) -> 100 | AH84: =IF(IF(ISERROR(SMALL($C84:$X84,AB$1)),0,IF($Y84=0,0,SMALL($C84:$X84,AB$1)))=0,100,AB84) -> 100 | AI84: =IF(IF(ISERROR(SMALL($C84:$X84,AC$1)),0,IF($Y84=0,0,SMALL($C84:$X84,AC$1)))=0,100,AC84) -> 100 | AJ84: =IF(IF(ISERROR(SMALL($C84:$X84,AD$1)),0,IF($Y84=0,0,SMALL($C84:$X84,AD$1)))=0,100,AD84) -> 100 | AK84: =SUM(AF84:AJ84) -> 500
A85: 84 | Y85: =SUM(C85:X85) -> 0 | Z85: =IF(ISERROR(SMALL($C85:$X85,Z$1)),0,IF($Y85=0,0,SMALL($C85:$X85,Z$1))) -> 0 | AA85: =IF(ISERROR(SMALL($C85:$X85,AA$1)),0,IF($Y85=0,0,SMALL($C85:$X85,AA$1))) -> 0 | AB85: =IF(ISERROR(SMALL($C85:$X85,AB$1)),0,IF($Y85=0,0,SMALL($C85:$X85,AB$1))) -> 0 | AC85: =IF(ISERROR(SMALL($C85:$X85,AC$1)),0,IF($Y85=0,0,SMALL($C85:$X85,AC$1))) -> 0 | AD85: =IF(ISERROR(SMALL($C85:$X85,AD$1)),0,IF($Y85=0,0,SMALL($C85:$X85,AD$1))) -> 0 | AE85: =SUM(Z85:AD85) -> 0 | AF85: =IF(IF(ISERROR(SMALL($C85:$X85,Z$1)),0,IF($Y85=0,0,SMALL($C85:$X85,Z$1)))=0,100,Z85) -> 100 | AG85: =IF(IF(ISERROR(SMALL($C85:$X85,AA$1)),0,IF($Y85=0,0,SMALL($C85:$X85,AA$1)))=0,100,AA85) -> 100 | AH85: =IF(IF(ISERROR(SMALL($C85:$X85,AB$1)),0,IF($Y85=0,0,SMALL($C85:$X85,AB$1)))=0,100,AB85) -> 100 | AI85: =IF(IF(ISERROR(SMALL($C85:$X85,AC$1)),0,IF($Y85=0,0,SMALL($C85:$X85,AC$1)))=0,100,AC85) -> 100 | AJ85: =IF(IF(ISERROR(SMALL($C85:$X85,AD$1)),0,IF($Y85=0,0,SMALL($C85:$X85,AD$1)))=0,100,AD85) -> 100 | AK85: =SUM(AF85:AJ85) -> 500
A86: 85 | Y86: =SUM(C86:X86) -> 0 | Z86: =IF(ISERROR(SMALL($C86:$X86,Z$1)),0,IF($Y86=0,0,SMALL($C86:$X86,Z$1))) -> 0 | AA86: =IF(ISERROR(SMALL($C86:$X86,AA$1)),0,IF($Y86=0,0,SMALL($C86:$X86,AA$1))) -> 0 | AB86: =IF(ISERROR(SMALL($C86:$X86,AB$1)),0,IF($Y86=0,0,SMALL($C86:$X86,AB$1))) -> 0 | AC86: =IF(ISERROR(SMALL($C86:$X86,AC$1)),0,IF($Y86=0,0,SMALL($C86:$X86,AC$1))) -> 0 | AD86: =IF(ISERROR(SMALL($C86:$X86,AD$1)),0,IF($Y86=0,0,SMALL($C86:$X86,AD$1))) -> 0 | AE86: =SUM(Z86:AD86) -> 0 | AF86: =IF(IF(ISERROR(SMALL($C86:$X86,Z$1)),0,IF($Y86=0,0,SMALL($C86:$X86,Z$1)))=0,100,Z86) -> 100 | AG86: =IF(IF(ISERROR(SMALL($C86:$X86,AA$1)),0,IF($Y86=0,0,SMALL($C86:$X86,AA$1)))=0,100,AA86) -> 100 | AH86: =IF(IF(ISERROR(SMALL($C86:$X86,AB$1)),0,IF($Y86=0,0,SMALL($C86:$X86,AB$1)))=0,100,AB86) -> 100 | AI86: =IF(IF(ISERROR(SMALL($C86:$X86,AC$1)),0,IF($Y86=0,0,SMALL($C86:$X86,AC$1)))=0,100,AC86) -> 100 | AJ86: =IF(IF(ISERROR(SMALL($C86:$X86,AD$1)),0,IF($Y86=0,0,SMALL($C86:$X86,AD$1)))=0,100,AD86) -> 100 | AK86: =SUM(AF86:AJ86) -> 500
A87: 86 | Y87: =SUM(C87:X87) -> 0 | Z87: =IF(ISERROR(SMALL($C87:$X87,Z$1)),0,IF($Y87=0,0,SMALL($C87:$X87,Z$1))) -> 0 | AA87: =IF(ISERROR(SMALL($C87:$X87,AA$1)),0,IF($Y87=0,0,SMALL($C87:$X87,AA$1))) -> 0 | AB87: =IF(ISERROR(SMALL($C87:$X87,AB$1)),0,IF($Y87=0,0,SMALL($C87:$X87,AB$1))) -> 0 | AC87: =IF(ISERROR(SMALL($C87:$X87,AC$1)),0,IF($Y87=0,0,SMALL($C87:$X87,AC$1))) -> 0 | AD87: =IF(ISERROR(SMALL($C87:$X87,AD$1)),0,IF($Y87=0,0,SMALL($C87:$X87,AD$1))) -> 0 | AE87: =SUM(Z87:AD87) -> 0 | AF87: =IF(IF(ISERROR(SMALL($C87:$X87,Z$1)),0,IF($Y87=0,0,SMALL($C87:$X87,Z$1)))=0,100,Z87) -> 100 | AG87: =IF(IF(ISERROR(SMALL($C87:$X87,AA$1)),0,IF($Y87=0,0,SMALL($C87:$X87,AA$1)))=0,100,AA87) -> 100 | AH87: =IF(IF(ISERROR(SMALL($C87:$X87,AB$1)),0,IF($Y87=0,0,SMALL($C87:$X87,AB$1)))=0,100,AB87) -> 100 | AI87: =IF(IF(ISERROR(SMALL($C87:$X87,AC$1)),0,IF($Y87=0,0,SMALL($C87:$X87,AC$1)))=0,100,AC87) -> 100 | AJ87: =IF(IF(ISERROR(SMALL($C87:$X87,AD$1)),0,IF($Y87=0,0,SMALL($C87:$X87,AD$1)))=0,100,AD87) -> 100 | AK87: =SUM(AF87:AJ87) -> 500
A88: 87 | Y88: =SUM(C88:X88) -> 0 | Z88: =IF(ISERROR(SMALL($C88:$X88,Z$1)),0,IF($Y88=0,0,SMALL($C88:$X88,Z$1))) -> 0 | AA88: =IF(ISERROR(SMALL($C88:$X88,AA$1)),0,IF($Y88=0,0,SMALL($C88:$X88,AA$1))) -> 0 | AB88: =IF(ISERROR(SMALL($C88:$X88,AB$1)),0,IF($Y88=0,0,SMALL($C88:$X88,AB$1))) -> 0 | AC88: =IF(ISERROR(SMALL($C88:$X88,AC$1)),0,IF($Y88=0,0,SMALL($C88:$X88,AC$1))) -> 0 | AD88: =IF(ISERROR(SMALL($C88:$X88,AD$1)),0,IF($Y88=0,0,SMALL($C88:$X88,AD$1))) -> 0 | AE88: =SUM(Z88:AD88) -> 0 | AF88: =IF(IF(ISERROR(SMALL($C88:$X88,Z$1)),0,IF($Y88=0,0,SMALL($C88:$X88,Z$1)))=0,100,Z88) -> 100 | AG88: =IF(IF(ISERROR(SMALL($C88:$X88,AA$1)),0,IF($Y88=0,0,SMALL($C88:$X88,AA$1)))=0,100,AA88) -> 100 | AH88: =IF(IF(ISERROR(SMALL($C88:$X88,AB$1)),0,IF($Y88=0,0,SMALL($C88:$X88,AB$1)))=0,100,AB88) -> 100 | AI88: =IF(IF(ISERROR(SMALL($C88:$X88,AC$1)),0,IF($Y88=0,0,SMALL($C88:$X88,AC$1)))=0,100,AC88) -> 100 | AJ88: =IF(IF(ISERROR(SMALL($C88:$X88,AD$1)),0,IF($Y88=0,0,SMALL($C88:$X88,AD$1)))=0,100,AD88) -> 100 | AK88: =SUM(AF88:AJ88) -> 500
A89: 88 | Y89: =SUM(C89:X89) -> 0 | Z89: =IF(ISERROR(SMALL($C89:$X89,Z$1)),0,IF($Y89=0,0,SMALL($C89:$X89,Z$1))) -> 0 | AA89: =IF(ISERROR(SMALL($C89:$X89,AA$1)),0,IF($Y89=0,0,SMALL($C89:$X89,AA$1))) -> 0 | AB89: =IF(ISERROR(SMALL($C89:$X89,AB$1)),0,IF($Y89=0,0,SMALL($C89:$X89,AB$1))) -> 0 | AC89: =IF(ISERROR(SMALL($C89:$X89,AC$1)),0,IF($Y89=0,0,SMALL($C89:$X89,AC$1))) -> 0 | AD89: =IF(ISERROR(SMALL($C89:$X89,AD$1)),0,IF($Y89=0,0,SMALL($C89:$X89,AD$1))) -> 0 | AE89: =SUM(Z89:AD89) -> 0 | AF89: =IF(IF(ISERROR(SMALL($C89:$X89,Z$1)),0,IF($Y89=0,0,SMALL($C89:$X89,Z$1)))=0,100,Z89) -> 100 | AG89: =IF(IF(ISERROR(SMALL($C89:$X89,AA$1)),0,IF($Y89=0,0,SMALL($C89:$X89,AA$1)))=0,100,AA89) -> 100 | AH89: =IF(IF(ISERROR(SMALL($C89:$X89,AB$1)),0,IF($Y89=0,0,SMALL($C89:$X89,AB$1)))=0,100,AB89) -> 100 | AI89: =IF(IF(ISERROR(SMALL($C89:$X89,AC$1)),0,IF($Y89=0,0,SMALL($C89:$X89,AC$1)))=0,100,AC89) -> 100 | AJ89: =IF(IF(ISERROR(SMALL($C89:$X89,AD$1)),0,IF($Y89=0,0,SMALL($C89:$X89,AD$1)))=0,100,AD89) -> 100 | AK89: =SUM(AF89:AJ89) -> 500
A90: 89 | Y90: =SUM(C90:X90) -> 0 | Z90: =IF(ISERROR(SMALL($C90:$X90,Z$1)),0,IF($Y90=0,0,SMALL($C90:$X90,Z$1))) -> 0 | AA90: =IF(ISERROR(SMALL($C90:$X90,AA$1)),0,IF($Y90=0,0,SMALL($C90:$X90,AA$1))) -> 0 | AB90: =IF(ISERROR(SMALL($C90:$X90,AB$1)),0,IF($Y90=0,0,SMALL($C90:$X90,AB$1))) -> 0 | AC90: =IF(ISERROR(SMALL($C90:$X90,AC$1)),0,IF($Y90=0,0,SMALL($C90:$X90,AC$1))) -> 0 | AD90: =IF(ISERROR(SMALL($C90:$X90,AD$1)),0,IF($Y90=0,0,SMALL($C90:$X90,AD$1))) -> 0 | AE90: =SUM(Z90:AD90) -> 0 | AF90: =IF(IF(ISERROR(SMALL($C90:$X90,Z$1)),0,IF($Y90=0,0,SMALL($C90:$X90,Z$1)))=0,100,Z90) -> 100 | AG90: =IF(IF(ISERROR(SMALL($C90:$X90,AA$1)),0,IF($Y90=0,0,SMALL($C90:$X90,AA$1)))=0,100,AA90) -> 100 | AH90: =IF(IF(ISERROR(SMALL($C90:$X90,AB$1)),0,IF($Y90=0,0,SMALL($C90:$X90,AB$1)))=0,100,AB90) -> 100 | AI90: =IF(IF(ISERROR(SMALL($C90:$X90,AC$1)),0,IF($Y90=0,0,SMALL($C90:$X90,AC$1)))=0,100,AC90) -> 100 | AJ90: =IF(IF(ISERROR(SMALL($C90:$X90,AD$1)),0,IF($Y90=0,0,SMALL($C90:$X90,AD$1)))=0,100,AD90) -> 100 | AK90: =SUM(AF90:AJ90) -> 500
A91: 90 | Y91: =SUM(C91:X91) -> 0 | Z91: =IF(ISERROR(SMALL($C91:$X91,Z$1)),0,IF($Y91=0,0,SMALL($C91:$X91,Z$1))) -> 0 | AA91: =IF(ISERROR(SMALL($C91:$X91,AA$1)),0,IF($Y91=0,0,SMALL($C91:$X91,AA$1))) -> 0 | AB91: =IF(ISERROR(SMALL($C91:$X91,AB$1)),0,IF($Y91=0,0,SMALL($C91:$X91,AB$1))) -> 0 | AC91: =IF(ISERROR(SMALL($C91:$X91,AC$1)),0,IF($Y91=0,0,SMALL($C91:$X91,AC$1))) -> 0 | AD91: =IF(ISERROR(SMALL($C91:$X91,AD$1)),0,IF($Y91=0,0,SMALL($C91:$X91,AD$1))) -> 0 | AE91: =SUM(Z91:AD91) -> 0 | AF91: =IF(IF(ISERROR(SMALL($C91:$X91,Z$1)),0,IF($Y91=0,0,SMALL($C91:$X91,Z$1)))=0,100,Z91) -> 100 | AG91: =IF(IF(ISERROR(SMALL($C91:$X91,AA$1)),0,IF($Y91=0,0,SMALL($C91:$X91,AA$1)))=0,100,AA91) -> 100 | AH91: =IF(IF(ISERROR(SMALL($C91:$X91,AB$1)),0,IF($Y91=0,0,SMALL($C91:$X91,AB$1)))=0,100,AB91) -> 100 | AI91: =IF(IF(ISERROR(SMALL($C91:$X91,AC$1)),0,IF($Y91=0,0,SMALL($C91:$X91,AC$1)))=0,100,AC91) -> 100 | AJ91: =IF(IF(ISERROR(SMALL($C91:$X91,AD$1)),0,IF($Y91=0,0,SMALL($C91:$X91,AD$1)))=0,100,AD91) -> 100 | AK91: =SUM(AF91:AJ91) -> 500
A92: 91 | Y92: =SUM(C92:X92) -> 0 | Z92: =IF(ISERROR(SMALL($C92:$X92,Z$1)),0,IF($Y92=0,0,SMALL($C92:$X92,Z$1))) -> 0 | AA92: =IF(ISERROR(SMALL($C92:$X92,AA$1)),0,IF($Y92=0,0,SMALL($C92:$X92,AA$1))) -> 0 | AB92: =IF(ISERROR(SMALL($C92:$X92,AB$1)),0,IF($Y92=0,0,SMALL($C92:$X92,AB$1))) -> 0 | AC92: =IF(ISERROR(SMALL($C92:$X92,AC$1)),0,IF($Y92=0,0,SMALL($C92:$X92,AC$1))) -> 0 | AD92: =IF(ISERROR(SMALL($C92:$X92,AD$1)),0,IF($Y92=0,0,SMALL($C92:$X92,AD$1))) -> 0 | AE92: =SUM(Z92:AD92) -> 0 | AF92: =IF(IF(ISERROR(SMALL($C92:$X92,Z$1)),0,IF($Y92=0,0,SMALL($C92:$X92,Z$1)))=0,100,Z92) -> 100 | AG92: =IF(IF(ISERROR(SMALL($C92:$X92,AA$1)),0,IF($Y92=0,0,SMALL($C92:$X92,AA$1)))=0,100,AA92) -> 100 | AH92: =IF(IF(ISERROR(SMALL($C92:$X92,AB$1)),0,IF($Y92=0,0,SMALL($C92:$X92,AB$1)))=0,100,AB92) -> 100 | AI92: =IF(IF(ISERROR(SMALL($C92:$X92,AC$1)),0,IF($Y92=0,0,SMALL($C92:$X92,AC$1)))=0,100,AC92) -> 100 | AJ92: =IF(IF(ISERROR(SMALL($C92:$X92,AD$1)),0,IF($Y92=0,0,SMALL($C92:$X92,AD$1)))=0,100,AD92) -> 100 | AK92: =SUM(AF92:AJ92) -> 500
A93: 92 | Y93: =SUM(C93:X93) -> 0 | Z93: =IF(ISERROR(SMALL($C93:$X93,Z$1)),0,IF($Y93=0,0,SMALL($C93:$X93,Z$1))) -> 0 | AA93: =IF(ISERROR(SMALL($C93:$X93,AA$1)),0,IF($Y93=0,0,SMALL($C93:$X93,AA$1))) -> 0 | AB93: =IF(ISERROR(SMALL($C93:$X93,AB$1)),0,IF($Y93=0,0,SMALL($C93:$X93,AB$1))) -> 0 | AC93: =IF(ISERROR(SMALL($C93:$X93,AC$1)),0,IF($Y93=0,0,SMALL($C93:$X93,AC$1))) -> 0 | AD93: =IF(ISERROR(SMALL($C93:$X93,AD$1)),0,IF($Y93=0,0,SMALL($C93:$X93,AD$1))) -> 0 | AE93: =SUM(Z93:AD93) -> 0 | AF93: =IF(IF(ISERROR(SMALL($C93:$X93,Z$1)),0,IF($Y93=0,0,SMALL($C93:$X93,Z$1)))=0,100,Z93) -> 100 | AG93: =IF(IF(ISERROR(SMALL($C93:$X93,AA$1)),0,IF($Y93=0,0,SMALL($C93:$X93,AA$1)))=0,100,AA93) -> 100 | AH93: =IF(IF(ISERROR(SMALL($C93:$X93,AB$1)),0,IF($Y93=0,0,SMALL($C93:$X93,AB$1)))=0,100,AB93) -> 100 | AI93: =IF(IF(ISERROR(SMALL($C93:$X93,AC$1)),0,IF($Y93=0,0,SMALL($C93:$X93,AC$1)))=0,100,AC93) -> 100 | AJ93: =IF(IF(ISERROR(SMALL($C93:$X93,AD$1)),0,IF($Y93=0,0,SMALL($C93:$X93,AD$1)))=0,100,AD93) -> 100 | AK93: =SUM(AF93:AJ93) -> 500
A94: 93 | Y94: =SUM(C94:X94) -> 0 | Z94: =IF(ISERROR(SMALL($C94:$X94,Z$1)),0,IF($Y94=0,0,SMALL($C94:$X94,Z$1))) -> 0 | AA94: =IF(ISERROR(SMALL($C94:$X94,AA$1)),0,IF($Y94=0,0,SMALL($C94:$X94,AA$1))) -> 0 | AB94: =IF(ISERROR(SMALL($C94:$X94,AB$1)),0,IF($Y94=0,0,SMALL($C94:$X94,AB$1))) -> 0 | AC94: =IF(ISERROR(SMALL($C94:$X94,AC$1)),0,IF($Y94=0,0,SMALL($C94:$X94,AC$1))) -> 0 | AD94: =IF(ISERROR(SMALL($C94:$X94,AD$1)),0,IF($Y94=0,0,SMALL($C94:$X94,AD$1))) -> 0 | AE94: =SUM(Z94:AD94) -> 0 | AF94: =IF(IF(ISERROR(SMALL($C94:$X94,Z$1)),0,IF($Y94=0,0,SMALL($C94:$X94,Z$1)))=0,100,Z94) -> 100 | AG94: =IF(IF(ISERROR(SMALL($C94:$X94,AA$1)),0,IF($Y94=0,0,SMALL($C94:$X94,AA$1)))=0,100,AA94) -> 100 | AH94: =IF(IF(ISERROR(SMALL($C94:$X94,AB$1)),0,IF($Y94=0,0,SMALL($C94:$X94,AB$1)))=0,100,AB94) -> 100 | AI94: =IF(IF(ISERROR(SMALL($C94:$X94,AC$1)),0,IF($Y94=0,0,SMALL($C94:$X94,AC$1)))=0,100,AC94) -> 100 | AJ94: =IF(IF(ISERROR(SMALL($C94:$X94,AD$1)),0,IF($Y94=0,0,SMALL($C94:$X94,AD$1)))=0,100,AD94) -> 100 | AK94: =SUM(AF94:AJ94) -> 500
A95: 94 | Y95: =SUM(C95:X95) -> 0 | Z95: =IF(ISERROR(SMALL($C95:$X95,Z$1)),0,IF($Y95=0,0,SMALL($C95:$X95,Z$1))) -> 0 | AA95: =IF(ISERROR(SMALL($C95:$X95,AA$1)),0,IF($Y95=0,0,SMALL($C95:$X95,AA$1))) -> 0 | AB95: =IF(ISERROR(SMALL($C95:$X95,AB$1)),0,IF($Y95=0,0,SMALL($C95:$X95,AB$1))) -> 0 | AC95: =IF(ISERROR(SMALL($C95:$X95,AC$1)),0,IF($Y95=0,0,SMALL($C95:$X95,AC$1))) -> 0 | AD95: =IF(ISERROR(SMALL($C95:$X95,AD$1)),0,IF($Y95=0,0,SMALL($C95:$X95,AD$1))) -> 0 | AE95: =SUM(Z95:AD95) -> 0 | AF95: =IF(IF(ISERROR(SMALL($C95:$X95,Z$1)),0,IF($Y95=0,0,SMALL($C95:$X95,Z$1)))=0,100,Z95) -> 100 | AG95: =IF(IF(ISERROR(SMALL($C95:$X95,AA$1)),0,IF($Y95=0,0,SMALL($C95:$X95,AA$1)))=0,100,AA95) -> 100 | AH95: =IF(IF(ISERROR(SMALL($C95:$X95,AB$1)),0,IF($Y95=0,0,SMALL($C95:$X95,AB$1)))=0,100,AB95) -> 100 | AI95: =IF(IF(ISERROR(SMALL($C95:$X95,AC$1)),0,IF($Y95=0,0,SMALL($C95:$X95,AC$1)))=0,100,AC95) -> 100 | AJ95: =IF(IF(ISERROR(SMALL($C95:$X95,AD$1)),0,IF($Y95=0,0,SMALL($C95:$X95,AD$1)))=0,100,AD95) -> 100 | AK95: =SUM(AF95:AJ95) -> 500
A96: 95 | Y96: =SUM(C96:X96) -> 0 | Z96: =IF(ISERROR(SMALL($C96:$X96,Z$1)),0,IF($Y96=0,0,SMALL($C96:$X96,Z$1))) -> 0 | AA96: =IF(ISERROR(SMALL($C96:$X96,AA$1)),0,IF($Y96=0,0,SMALL($C96:$X96,AA$1))) -> 0 | AB96: =IF(ISERROR(SMALL($C96:$X96,AB$1)),0,IF($Y96=0,0,SMALL($C96:$X96,AB$1))) -> 0 | AC96: =IF(ISERROR(SMALL($C96:$X96,AC$1)),0,IF($Y96=0,0,SMALL($C96:$X96,AC$1))) -> 0 | AD96: =IF(ISERROR(SMALL($C96:$X96,AD$1)),0,IF($Y96=0,0,SMALL($C96:$X96,AD$1))) -> 0 | AE96: =SUM(Z96:AD96) -> 0 | AF96: =IF(IF(ISERROR(SMALL($C96:$X96,Z$1)),0,IF($Y96=0,0,SMALL($C96:$X96,Z$1)))=0,100,Z96) -> 100 | AG96: =IF(IF(ISERROR(SMALL($C96:$X96,AA$1)),0,IF($Y96=0,0,SMALL($C96:$X96,AA$1)))=0,100,AA96) -> 100 | AH96: =IF(IF(ISERROR(SMALL($C96:$X96,AB$1)),0,IF($Y96=0,0,SMALL($C96:$X96,AB$1)))=0,100,AB96) -> 100 | AI96: =IF(IF(ISERROR(SMALL($C96:$X96,AC$1)),0,IF($Y96=0,0,SMALL($C96:$X96,AC$1)))=0,100,AC96) -> 100 | AJ96: =IF(IF(ISERROR(SMALL($C96:$X96,AD$1)),0,IF($Y96=0,0,SMALL($C96:$X96,AD$1)))=0,100,AD96) -> 100 | AK96: =SUM(AF96:AJ96) -> 500
A97: 96 | Y97: =SUM(C97:X97) -> 0 | Z97: =IF(ISERROR(SMALL($C97:$X97,Z$1)),0,IF($Y97=0,0,SMALL($C97:$X97,Z$1))) -> 0 | AA97: =IF(ISERROR(SMALL($C97:$X97,AA$1)),0,IF($Y97=0,0,SMALL($C97:$X97,AA$1))) -> 0 | AB97: =IF(ISERROR(SMALL($C97:$X97,AB$1)),0,IF($Y97=0,0,SMALL($C97:$X97,AB$1))) -> 0 | AC97: =IF(ISERROR(SMALL($C97:$X97,AC$1)),0,IF($Y97=0,0,SMALL($C97:$X97,AC$1))) -> 0 | AD97: =IF(ISERROR(SMALL($C97:$X97,AD$1)),0,IF($Y97=0,0,SMALL($C97:$X97,AD$1))) -> 0 | AE97: =SUM(Z97:AD97) -> 0 | AF97: =IF(IF(ISERROR(SMALL($C97:$X97,Z$1)),0,IF($Y97=0,0,SMALL($C97:$X97,Z$1)))=0,100,Z97) -> 100 | AG97: =IF(IF(ISERROR(SMALL($C97:$X97,AA$1)),0,IF($Y97=0,0,SMALL($C97:$X97,AA$1)))=0,100,AA97) -> 100 | AH97: =IF(IF(ISERROR(SMALL($C97:$X97,AB$1)),0,IF($Y97=0,0,SMALL($C97:$X97,AB$1)))=0,100,AB97) -> 100 | AI97: =IF(IF(ISERROR(SMALL($C97:$X97,AC$1)),0,IF($Y97=0,0,SMALL($C97:$X97,AC$1)))=0,100,AC97) -> 100 | AJ97: =IF(IF(ISERROR(SMALL($C97:$X97,AD$1)),0,IF($Y97=0,0,SMALL($C97:$X97,AD$1)))=0,100,AD97) -> 100 | AK97: =SUM(AF97:AJ97) -> 500
A98: 97 | Y98: =SUM(C98:X98) -> 0 | Z98: =IF(ISERROR(SMALL($C98:$X98,Z$1)),0,IF($Y98=0,0,SMALL($C98:$X98,Z$1))) -> 0 | AA98: =IF(ISERROR(SMALL($C98:$X98,AA$1)),0,IF($Y98=0,0,SMALL($C98:$X98,AA$1))) -> 0 | AB98: =IF(ISERROR(SMALL($C98:$X98,AB$1)),0,IF($Y98=0,0,SMALL($C98:$X98,AB$1))) -> 0 | AC98: =IF(ISERROR(SMALL($C98:$X98,AC$1)),0,IF($Y98=0,0,SMALL($C98:$X98,AC$1))) -> 0 | AD98: =IF(ISERROR(SMALL($C98:$X98,AD$1)),0,IF($Y98=0,0,SMALL($C98:$X98,AD$1))) -> 0 | AE98: =SUM(Z98:AD98) -> 0 | AF98: =IF(IF(ISERROR(SMALL($C98:$X98,Z$1)),0,IF($Y98=0,0,SMALL($C98:$X98,Z$1)))=0,100,Z98) -> 100 | AG98: =IF(IF(ISERROR(SMALL($C98:$X98,AA$1)),0,IF($Y98=0,0,SMALL($C98:$X98,AA$1)))=0,100,AA98) -> 100 | AH98: =IF(IF(ISERROR(SMALL($C98:$X98,AB$1)),0,IF($Y98=0,0,SMALL($C98:$X98,AB$1)))=0,100,AB98) -> 100 | AI98: =IF(IF(ISERROR(SMALL($C98:$X98,AC$1)),0,IF($Y98=0,0,SMALL($C98:$X98,AC$1)))=0,100,AC98) -> 100 | AJ98: =IF(IF(ISERROR(SMALL($C98:$X98,AD$1)),0,IF($Y98=0,0,SMALL($C98:$X98,AD$1)))=0,100,AD98) -> 100 | AK98: =SUM(AF98:AJ98) -> 500
A99: 98 | Y99: =SUM(C99:X99) -> 0 | Z99: =IF(ISERROR(SMALL($C99:$X99,Z$1)),0,IF($Y99=0,0,SMALL($C99:$X99,Z$1))) -> 0 | AA99: =IF(ISERROR(SMALL($C99:$X99,AA$1)),0,IF($Y99=0,0,SMALL($C99:$X99,AA$1))) -> 0 | AB99: =IF(ISERROR(SMALL($C99:$X99,AB$1)),0,IF($Y99=0,0,SMALL($C99:$X99,AB$1))) -> 0 | AC99: =IF(ISERROR(SMALL($C99:$X99,AC$1)),0,IF($Y99=0,0,SMALL($C99:$X99,AC$1))) -> 0 | AD99: =IF(ISERROR(SMALL($C99:$X99,AD$1)),0,IF($Y99=0,0,SMALL($C99:$X99,AD$1))) -> 0 | AE99: =SUM(Z99:AD99) -> 0 | AF99: =IF(IF(ISERROR(SMALL($C99:$X99,Z$1)),0,IF($Y99=0,0,SMALL($C99:$X99,Z$1)))=0,100,Z99) -> 100 | AG99: =IF(IF(ISERROR(SMALL($C99:$X99,AA$1)),0,IF($Y99=0,0,SMALL($C99:$X99,AA$1)))=0,100,AA99) -> 100 | AH99: =IF(IF(ISERROR(SMALL($C99:$X99,AB$1)),0,IF($Y99=0,0,SMALL($C99:$X99,AB$1)))=0,100,AB99) -> 100 | AI99: =IF(IF(ISERROR(SMALL($C99:$X99,AC$1)),0,IF($Y99=0,0,SMALL($C99:$X99,AC$1)))=0,100,AC99) -> 100 | AJ99: =IF(IF(ISERROR(SMALL($C99:$X99,AD$1)),0,IF($Y99=0,0,SMALL($C99:$X99,AD$1)))=0,100,AD99) -> 100 | AK99: =SUM(AF99:AJ99) -> 500
A100: 99 | Y100: =SUM(C100:X100) -> 0 | Z100: =IF(ISERROR(SMALL($C100:$X100,Z$1)),0,IF($Y100=0,0,SMALL($C100:$X100,Z$1))) -> 0 | AA100: =IF(ISERROR(SMALL($C100:$X100,AA$1)),0,IF($Y100=0,0,SMALL($C100:$X100,AA$1))) -> 0 | AB100: =IF(ISERROR(SMALL($C100:$X100,AB$1)),0,IF($Y100=0,0,SMALL($C100:$X100,AB$1))) -> 0 | AC100: =IF(ISERROR(SMALL($C100:$X100,AC$1)),0,IF($Y100=0,0,SMALL($C100:$X100,AC$1))) -> 0 | AD100: =IF(ISERROR(SMALL($C100:$X100,AD$1)),0,IF($Y100=0,0,SMALL($C100:$X100,AD$1))) -> 0 | AE100: =SUM(Z100:AD100) -> 0 | AF100: =IF(IF(ISERROR(SMALL($C100:$X100,Z$1)),0,IF($Y100=0,0,SMALL($C100:$X100,Z$1)))=0,100,Z100) -> 100 | AG100: =IF(IF(ISERROR(SMALL($C100:$X100,AA$1)),0,IF($Y100=0,0,SMALL($C100:$X100,AA$1)))=0,100,AA100) -> 100 | AH100: =IF(IF(ISERROR(SMALL($C100:$X100,AB$1)),0,IF($Y100=0,0,SMALL($C100:$X100,AB$1)))=0,100,AB100) -> 100 | AI100: =IF(IF(ISERROR(SMALL($C100:$X100,AC$1)),0,IF($Y100=0,0,SMALL($C100:$X100,AC$1)))=0,100,AC100) -> 100 | AJ100: =IF(IF(ISERROR(SMALL($C100:$X100,AD$1)),0,IF($Y100=0,0,SMALL($C100:$X100,AD$1)))=0,100,AD100) -> 100 | AK100: =SUM(AF100:AJ100) -> 500
A101: 100 | Y101: =SUM(C101:X101) -> 0 | Z101: =IF(ISERROR(SMALL($C101:$X101,Z$1)),0,IF($Y101=0,0,SMALL($C101:$X101,Z$1))) -> 0 | AA101: 0 | AB101: 0 | AC101: 0 | AD101: 0 | AE101: =SUM(Z101:AD101) -> 0

Sheet Sheet2

Sheet Sheet3
